Workbook

Sheet Cover Page
D1: Add company logo
N2: Version 22.3 30/11/22
B8: Add photo
N13: Notes:
N14: This template may require adjustments by individual operators to meet specific reporting requirements as defined in the site Permit(s)
B29: Annual Performance Report 2022
B31: Permit EPR/WP3239SJ
B33: Tyseley Energy from Waste Plant
B37: Veolia ES Birmingham Limited
B39: Year: | C39: 2022
B41: Address: | C41: James Road, Tyseley, Birmingham, B11 2BA
B43: Tel: | C43: 0203 567 3742
B45: Email: | C45: christine.skaramaga@veolia.com
B47: Prepared by: | C47: Christine Skaramaga | F47: Position: | G47: Senior Environmental Engineer
B50: Approved by: | C50: Mark Gilsenan | F50: Position: | G50: Plant Manager
B52: Version: | C52: 1
B54: Issue Date: | C54: 2023-01-26

Sheet Contents
A1: =+'Cover Page'!$B$29 -> Annual Performance Report 2022 | E1: =+'Cover Page'!$B$33 -> Tyseley Energy from Waste Plant
A3: Contents | K3: Notes:
A4: Section | B4: Subject | H4: Page | K4: Section references and Page nos. to be inserted
B5: Facility Information | H5: 3 | K5: Sections and Subjects may require adjustment by individual operators to meet specific reporting requirements as defined in the sites Permit(s)
B6: Operational Summary | H6: 4
B7: Operational Data | H7: 5
B8: Performance Form 1 | H8: 7
B9: Energy Form 1 | H9: 8
B10: Permit Compliance | H10: 9
B11: Improvements | H11: 10
B12: Public Liasion | H12: 11
B13: Carbon dioxide and nitrous oxide emissions | H13: 12
B14: Residue Quality | H14: 14
B15: Emissions to Water | H15: 15
B16: Emissions to Air (periodically monitored) | H16: 16
B17: Emissions to Air (continuously monitored) | H17: 17
B18: Hydrogen Chloride emissions | H18: 18
B19: Sulphur Dioxdie emsissions | H19: 19
B20: Oxides of Notrigen emissions | H20: 20
B21: Total Organic Carbon emissions | H21: 21
B22: Particulate Matter emissions | H22: 22
B23: Carbon Monoxide emissions | H23: 23
A26: Version Control
A27: Section | B27: Information | H27: Date
A34: Distribution
A35: Copy | B35: Name, Role | H35: No.
A36: 1 | B36: Sarah Dennis, EA Installations Technical Leader | H36: 1
A44: This report is required under the Industrial Emissions Directive’s Article 55(2) requirements on reporting and public information on waste incineration plants and co-incineration plants, which require the operator to produce an annual report on the functioning and monitoring of the plant and make it available to the public.

Sheet Facility Info
A1: =+'Cover Page'!$B$29 -> Annual Performance Report 2022 | E1: =+'Cover Page'!$B$33 -> Tyseley Energy from Waste Plant
A3: Plant Description and Design | K3: Notes:
A5: The main purpose of the activity carried out at this facility is to incinerate, primarily, Municipal Solid Waste (MSW) as defined by EWC 20 03 01, recovering energy in the form of steam and electricity generating 27 MW for export to the National Grid. The permit covers the site and the entire incineration process which includes all incineration lines, waste reception and storage, waste-fuel and air supply systems, boilers, facilities for the treatment of exhaust gases, on-site facilities for handling and storage of residues and operations, recording and monitoring conditions. | K5: Include summary of plant design, design capacity, no. of combustion lines, electrical and heat capacity and any other general information that descibes the facility, its location and purpose
A20: Summary of Operational Processes and Procedures
A22: This facility consists of two incineration lines, each capable of processing approximately 23.5 tonnes per hour, which takes approximately 350,000 tonnes of Birmingham’s waste each year but this, is dependent on two factors: actual operating hours and calorific value of the waste being burnt. The third incineration line processes clinical waste and other designated hazardous wastes (CWI) at a nominal rate of 600kg/hour. All emissions to air from the two 80m high chimneys are controlled to meet the emission limits included in the Environmental Permit. the flue gases released into the atmosphere are continuously monitored for Particulate Matter (total), TOC, Hydrogen Chloride, Oxides of Nitrogen, Carbon Monoxide, Ammonia and Sulphur Dioxide. Bi-annual check monitoring of this equipment is carried out by approved contractors using indepent extractive sampling methods, at which time emissions of Metals, Dioxins and other substances are also monitored. The Continious Emissions Monitoring equipment (CEMs) was in service during 2020 for 100% of the plant operating time. This equipment is stringently monitored with routine calibration checks and is standardised to BS EN14181:2004. Half hourly (10 minute for CO) and daily average emission data for continuously monitored emissions is supplied to the Environment Agency on a monthly basis. | K22: Include summary of key processes and procedures such as (but not limited to); waste reception, control rooms, grate, bed and bolier, energy & heat generation, cooling systems, residue management, emission controls, health and safety systems, maintenance

Sheet Operational Summary
A1: =+'Cover Page'!$B$29 -> Annual Performance Report 2022 | E1: =+'Cover Page'!$B$33 -> Tyseley Energy from Waste Plant
A3: Summary of Plant Operations and Maintenance during the reporting year | K3: Notes:
A5: Annual outage Feed chute slope steel work replaced with new Replacement of feeder boxes and wear plates Air heaters inspected & cleaned General maintenance on grates and chiller tubes Burners inpsected & serviced Instrument calibrations across the boiler Replacement of furnace to second pass joggle tubes Furnace replacement of damaged and missing tiles Inconel overlay work in furnace roof Inspection of boiler tubes & NDT carried out Boiler drum end replacement lagging Replacement of pressure relief valve on steam drum AD & bottom ash conveyor deep clean & inspection Ash siftings system cleaned & inspected, repairs in areas needed Reactor tower cleaning and replacement of the ash conveyor & denseveyor system Baghouse inspection, socks changed, plate work & door hinges replacement where required Expansion joint between ID fan & stack replaced Electrical inspections in MCC board & switch gear, transformer 1, ID & FD fans Electrical motor checks for ID, PA, SA fans, feed pumps & condensate pumps Continious emissions monitoring system replacement | K5: Include summary of key operational and/or mainteanance activity undertaken in the year, such as any major component upgrades and/or replacements
A29: Summary of Residue Handling for the reporting year
A31: Ash residues (known as Incinerator Bottom Ash or IBA) are currently sent to Castle Bromwich for reprocessing. This material is reprocessed by extracting further ferrous and non-ferrous metals and by crushing, trommelling and screening to produce a graded, quality material that is useable as substitute aggregate in such applications as road building. Ferrous metal removed from the IBA is sent to a steel manufacturer for recycling. Finer particulate matter, know as Air Pollution Control (APC) residues, removed from the flue gases by fabric filter is collected and sent to the Minosus Hazardous Waste underground storage facility in Cheshire or to Empire Works, a Veolia facility, for treatment. | K31: Include in here a summary of residue handling regimes and destinations

Sheet Operational Data
A1: =+'Cover Page'!$B$29 -> Annual Performance Report 2022 | E1: =+'Cover Page'!$B$33 -> Tyseley Energy from Waste Plant
A3: Operational Data | K3: Notes:
A4: Plant Size | B4: 440500 | D4: tonnes pa | F4: MWth | H4: MWe | K4: * - RDF to include SRF
A5: No. of combustion lines | B5: 2 | D5: No. of Turbines: | F5: 1 | K5: ** - CHP plants only
K6: 2020 updates include; heat in MWh, water in Litres, NCV in MJ/kg
A7: Waste types received | B7: Unit | C7: Q1 | D7: Q2 | E7: Q3 | F7: Q4 | G7: Year Total | H7: %
A8: Household / Local Authority | B8: tonnes | C8: 91147.7 | D8: 83130.48 | E8: 92361.37 | F8: 90528.23 | G8: =SUM(C8:F8) -> 357167.78 | H8: =IF(G8>0,G8/$G$18,"-") -> 0.9777893135 | K8: Availabiity Definition: 'the availability of a line is to be calculated by the number of hours the line reported Continuously Monitored emission levels to the Regulator through the calendar year divided by the total number of hours in that year. The overall plant availability is calculated as the Mean of all lines in the plant. For clarity this includes periods of Other Than Normal Operating Conditions (OTNOC) and abnormal operation.' Rationale: The primary function of an Energy from Waste facility is the disposal of waste. It follows therefore that the availability of a plant is determined by the period of time a facility spends undertaking this activity.
A9: Commercial & Industrial | C9: 120.14 | D9: 561.84 | E9: 471.15 | F9: 1411.9 | G9: =SUM(C9:F9) -> 2565.03 | H9: 0.007022074955
A10: Hazardous | C10: 828.17 | D10: 889.81 | E10: 800.88 | F10: 813.61 | G10: 3332.47 | H10: 0.009123033308
A11: Clinical | C11: 417.62 | D11: 524.26 | E11: 574.85 | F11: 698.91 | G11: 2215.64 | H11: 0.00606557824
A12: Waste wood (biomass) | G12: 0 | H12: -
A13: Refuse Derived Fuel * - H'hold/LA | G13: =SUM(C13:F13) -> 0 | H13: -
A14: Refuse Derived Fuel * - C&I | G14: 0 | H14: -
A15: Other [Please specify] | G15: 0 | H15: -
A16: Other [Please specify]
A17: Other [Please specify]
A18: Total waste received | C18: =SUM(C8:C17) -> 92513.63 | D18: =SUM(D8:D17) -> 85106.39 | E18: =SUM(E8:E17) -> 94208.25 | F18: =SUM(F8:F17) -> 93452.65 | G18: =SUM(G8:G17) -> 365280.92 | H18: =IF(G18>0,G18/$G$18,"-") -> 1
A19: Rejected Waste | G19: =SUM(C19:F19) -> 0 | H19: =IF(G19>0,G19/$G$18,"-") -> -
A20: Unprocessed waste transferred out | G20: =SUM(C20:F20) -> 0 | H20: =IF(G20>0,G20/$G$18,"-") -> -
A21: Total waste combusted | C21: 93846.02303 | D21: 85159.46071 | E21: 97274.6 | F21: 99637.72 | G21: =SUM(C21:F21) -> 375917.8037 | H21: =IF(G21>0,G21/$G$18,"-") -> 1.029119735
A23: Energy Useage / Export | B23: Unit | C23: Q1 | D23: Q2 | E23: Q3 | F23: Q4 | G23: Year Total | H23: KWh/te
A24: Power Generated | B24: MWh | C24: 54755 | D24: 43407 | E24: 55781 | F24: 57518 | G24: =SUM(C24:F24) -> 211461 | H24: =IF(G24>0,G24*1000/$G$21,"-") -> 562.5192473
A25: Power Exported | C25: 47867 | D25: 37416 | E25: 48594 | F25: 50336 | G25: =SUM(C25:F25) -> 184213 | H25: =IF(G25>0,G25*1000/$G$21,"-") -> 490.0353167
A26: Power Used on site | C26: =(C24+C27)-C25 -> 6888 | D26: =(D24+D27)-D25 -> 6555.633125 | E26: =(E24+E27)-E25 -> 7209.5 | F26: =(F24+F27)-F25 -> 7182 | G26: =SUM(C26:F26) -> 27835.13313 | H26: =IF(G26>0,G26*1000/$G$21,"-") -> 74.04579631
A27: Power Imported | C27: 0 | D27: 564.633125 | E27: 22.5 | F27: 0 | G27: =SUM(C27:F27) -> 587.133125 | H27: =IF(G27>0,G27*1000/$G$21,"-") -> 1.561865703
A28: Parasitic Load | B28: % | C28: =IF(C24>0,1-C25/(C24+C27),"-") -> 0.1257967309 | D28: =IF(D24>0,1-D25/(D24+D27),"-") -> 0.1490877791 | E28: =IF(E24>0,1-E25/(E24+E27),"-") -> 0.1291944054 | F28: =IF(F24>0,1-F25/(F24+F27),"-") -> 0.1248652596 | G28: =IF(G24>0,1-G25/(G24+G27),"-") -> 0.1312679943
A29: Thermal Energy Produced ** | B29: MWh | G29: =SUM(C29:F29) -> 0 | H29: =IF(G29>0,G29*1000/$G$21,"-") -> -
A30: Thermal Energy Exported ** | G30: =SUM(C30:F30) -> 0 | H30: =IF(G30>0,G30*1000/$G$21,"-") -> -
A31: R1 value (if applicable)
A33: Waste Disposal & Recovery | B33: Unit | C33: Q1 | D33: Q2 | E33: Q3 | F33: Q4 | G33: Year Total | H33: % inputs
A34: APC Residues - produced | B34: tonnes | C34: 2165.6 | D34: 2080.52 | E34: 2192.9 | F34: 2269.9 | G34: =SUM(C34:F34) -> 8708.92 | H34: =IF(G34>0,G34/$G$21,"-") -> 0.02316708577
A35: IBA - produced | C35: 19462 | D35: 18650.2 | E35: 19424.68 | F35: 19615.34 | G35: =SUM(C35:F35) -> 77152.22 | H35: =IF(G35>0,G35/$G$21,"-") -> 0.2052369407
A36: Metals recycling | C36: 767.42 | D36: 654.78 | E36: 1005.66 | F36: 951.59 | G36: =SUM(C36:F36) -> 3379.45 | H36: =IF(G36>0,G36/$G$21,"-") -> 0.008989864184
A37: Wooden packaging | C37: 0 | D37: 30.96 | E37: 20.32 | F37: 32.96 | G37: =SUM(C37:F37) -> 84.24 | H37: =IF(G37>0,G37/$G$21,"-") -> 0.0002240915412
A39: Raw Material Usage | B39: Unit | C39: Q1 | D39: Q2 | E39: Q3 | F39: Q4 | G39: Year Total | H39: kg or Ltr /te
A40: Mains Water | B40: m3 | C40: 41113 | D40: 36990 | E40: 39938 | F40: 41415 | G40: =SUM(C40:F40) -> 159456 | H40: =IF(G40>0,G40*1000/$G$21,"-") -> 424.1778347
A41: Other Water | B41: m3 | C41: 0 | D41: 3300 | E41: 0 | F41: 253.0277419 | G41: 3553.027742 | H41: =IF(G41>0,G41*1000/$G$21,"-") -> 9.451608055
A42: Ammonia | B42: kgs | C42: 50760 | D42: 43896 | E42: 76496 | F42: 111180 | G42: 282332 | H42: =IF(G42>0,G42/$G$21,"-") -> 0.7510471629
A43: Activated Carbon | B43: kgs | C43: 38752 | D43: 32096 | E43: 38752 | F43: 33344 | G43: 142944 | H43: =IF(G43>0,G43/$G$21,"-") -> 0.3802533388
A44: Lime / hydrated lime | B44: kgs | C44: 553000 | D44: 541000 | E44: 620000 | F44: 556000 | G44: 2270000 | H44: =IF(G44>0,G44/$G$21,"-") -> 6.038554113
A45: Fuel oil | B45: ltrs | C45: 70156 | D45: 275051 | E45: 249763 | F45: 348407 | G45: 943377 | H45: =IF(G45>0,G45/$G$21,"-") -> 2.509529984
A46: Gas | B46: cf | C46: 0 | D46: 0 | E46: 0 | F46: 0 | G46: 0
A48: Summary | B48: Line/Unit | C48: Q1 | D48: Q2 | E48: Q3 | F48: Q4 | G48: Year Total | J48: Hrs in year
A49: Availability of waste combustion by line, hrs | B49: 1 | C49: 2090 | D49: 1763 | E49: 2126 | F49: 2154 | G49: =SUM(C49:F49) -> 8133 | H49: =G49/$J$49 -> 0.9284246575 | J49: 8760
B50: 2 | C50: 1973 | D50: 1878 | E50: 2140 | F50: 2121 | G50: 8112 | H50: =G50/$J$49 -> 0.9260273973
B51: 3 | G51: 0 | H51: 0
B52: 4 | G52: 0 | H52: 0
B53: 5 | G53: =SUM(C53:F53) -> 0 | H53: 0
A54: Overall Availability, mean avg. of all lines, hrs | C54: =AVERAGE(C49:C50) -> 2031.5 | D54: =AVERAGE(D49:D50) -> 1820.5 | E54: =AVERAGE(E49:E50) -> 2133 | F54: =AVERAGE(F49:F50) -> 2137.5 | G54: =AVERAGE(G49:G50) -> 8122.5 | H54: 0.9272260274
A55: Hours of turbine operations, hrs | B55: 1 | C55: 2160 | D55: 2027.95 | E55: 2194 | F55: 2208 | G55: 8589.95 | H55: 0.9805878995
A57: Hours of heat / steam export | G57: 0 | H57: =IF(B57>0,G56/J49,"n/a") -> n/a
A58: Net Calorific Value of waste | B58: MJ/kg | H58: -
A59: Abnormal Events | B59: qty. | G59: 0 | H59: =IF(G59>0,"yes","no") -> no
A60: Abnormal operation | B60: hours | G60: 0 | H60: =+(G60)/J49 -> 0
A61: Permit Breaches | B61: qty. | G61: 0 | H61: =IF(G61>0,"yes","no") -> no

Sheet Perf. Form 1
A1: =+'Cover Page'!C39 -> 2022 | B1: Annual Reporting Performance Form 1
A3: =+'Cover Page'!B31 -> Permit EPR/WP3239SJ | F3: Operator: | G3: =+'Cover Page'!B37 -> Veolia ES Birmingham Limited
A4: Facility: | B4: =+'Cover Page'!B33:I33 -> Tyseley Energy from Waste Plant | F4: Form: | G4: Performance 1
A6: Reporting Period from: | D6: 2022-01-01 | F6: to: | G6: 2022-12-31
A8: =+A1 -> 2022 | B8: Annual Reporting of Waste Disposal and Recovery
A9: Waste Description | C9: Disposal Route(s) | E9: Disposal Tonnes | G9: Recovery Tonnes | I9: % / tonne of waste incinerated
A10: 1) Hazardous Wastes
A11: APC Residues | C11: D05 / D09 | E11: ='Operational Data'!G34 -> 8708.92 | I11: =IF((E11+G11)>0,(E11+G11)/'Operational Data'!$G$21, "-") -> 0.02316708577
A12: IBA | I12: =IF((E12+G12)>0,(E12+G12)/'Operational Data'!$G$21, "-") -> -
A13: Interceptor waste | C13: D09 | E13: ='Operational Data'!#REF! ->  | I13: =IF((E13+G13)>0,(E13+G13)/'Operational Data'!$G$21, "-") -> 
A14: Slag | C14: D10 | E14: ='Operational Data'!#REF! ->  | I14: =IF((E14+G14)>0,(E14+G14)/'Operational Data'!$G$21, "-") -> 
A15: Total Hazardous Waste | E15: =SUM(E11:F14) ->  | G15: =SUM(G11:H14) -> 0 | I15: =IF((E15+G15)>0,(E15+G15)/'Operational Data'!$G$21, "-") -> 
A17: 2) Non-Hazardous Wastes
A18: IBA | C18: R11 | G18: ='Operational Data'!G35 -> 77152.22 | I18: =IF((E18+G18)>0,(E18+G18)/'Operational Data'!$G$21, "-") -> 0.2052369407
A19: Ferrous Metal | C19: R04 | G19: ='Operational Data'!G36 -> 3379.45 | I19: =IF((E19+G19)>0,(E19+G19)/'Operational Data'!$G$21, "-") -> 0.008989864184
A20: Wooden packaging | C20: R03 / R05 | G20: ='Operational Data'!G37 -> 84.24 | I20: =IF((E20+G20)>0,(E20+G20)/'Operational Data'!$G$21, "-") -> 0.0002240915412
I21: =IF((E21+G21)>0,(E21+G21)/'Operational Data'!$G$21, "-") -> -
I22: =IF((E22+G22)>0,(E22+G22)/'Operational Data'!$G$21, "-") -> -
A23: Total Non-Hazardous Waste | E23: =SUM(E18:F22) -> 0 | G23: =SUM(G18:H22) -> 80615.91 | I23: =IF((E23+G23)>0,(E23+G23)/'Operational Data'!$G$21, "-") -> 0.2144508964
A24: TOTAL WASTE | E24: =+E23+E15 ->  | G24: =+G23+G15 -> 80615.91 | I24: =IF((E24+G24)>0,(E24+G24)/'Operational Data'!$G$21, "-") -> 
A26: Operator’s comments :
A31: =+A1 -> 2022 | B31: Annual Reporting of Water and Other Raw Material Usage
A32: Raw Material | E32: Usage | G32: Unit | H32: Specific Useage | J32: Unit
A33: Mains Water | E33: =+'Operational Data'!G40 -> 159456 | G33: m3 | H33: =IF(E33>0,E33/'Operational Data'!$G$21,"-") -> 0.4241778347 | J33: m3/te
A34: Total Water | E34: =+'Operational Data'!G41+'Operational Data'!G40 -> 163009.0277 | G34: m3 | H34: =IF(E34>0,E34/'Operational Data'!$G$21,"-") -> 0.4336294427 | J34: m3/te
A35: Urea / Ammonia | E35: =+'Operational Data'!G42 -> 282332 | G35: kg | H35: =IF(E35>0,E35/'Operational Data'!$G$21,"-") -> 0.7510471629 | J35: kg/te
A36: Activated Carbon | E36: =+'Operational Data'!G43 -> 142944 | G36: kg | H36: =IF(E36>0,E36/'Operational Data'!$G$21,"-") -> 0.3802533388 | J36: kg/te
A37: Lime / hydrated lime / Sodium Bicarb. | E37: =+'Operational Data'!G44 -> 2270000 | G37: kg | H37: =IF(E37>0,E37/'Operational Data'!$G$21,"-") -> 6.038554113 | J37: kg/te
A39: Operator’s comments :
A43: =+A31 -> 2022 | B43: Annual Reporting of other performance indicators
A44: Parameter | C44: Results by Line
C45: A1 | D45: A2 | E45: A3 | F45: A4 | G45: A5 | I45: Turbine 1 | J45: Turbine 2
A46: Operating hours for the year, hours | C46: ='Operational Data'!G49 -> 8133 | D46: ='Operational Data'!G50 -> 8112 | I46: ='Operational Data'!G55 -> 8589.95
A47: Number of periods of abnormal operation, qty.
A48: Cumulative hours of abnormal operation for this year, hours
A50: Operator’s comments :
A54: Signed: | B54: Mark Gilsenan | G54: Date: | H54: 2023-01-26

Sheet Energy Form 1
A1: =+'Cover Page'!C39 -> 2022 | B1: Annual Reporting of Energy Usage/Export
A3: =+'Cover Page'!B31 -> Permit EPR/WP3239SJ | F3: Operator: | G3: =+'Cover Page'!B37 -> Veolia ES Birmingham Limited
A5: Facility: | B5: =+'Cover Page'!B33:I33 -> Tyseley Energy from Waste Plant | F5: Form: | G5: Energy 1
A7: Reporting Period from: | D7: =+'Perf. Form 1'!D6:E6 -> 2022-01-01 | F7: to: | G7: =+'Perf. Form 1'!G6:H6 -> 2022-12-31
A9: Energy Source | D9: Energy Usage | F9: Unit | G9: Specific Useage (KWh/tonne incinerated
A10: Electricity Produced | D10: =+'Operational Data'!G24 -> 211461 | F10: MWh | G10: =+'Operational Data'!H24 -> 562.5192473
A11: Electricity Imported | D11: =+'Operational Data'!G27 -> 587.133125 | F11: MWh | G11: =+'Operational Data'!H27 -> 1.561865703
A12: Electricity Exported | D12: =+'Operational Data'!G25 -> 184213 | F12: MWh | G12: =+'Operational Data'!H25 -> 490.0353167
A13: Gas Oil | D13: ='Operational Data'!G45 -> 943377 | F13: tonnes | G13: ='Operational Data'!H45 -> 2.509529984
A14: Steam/hot water exported | D14: =+'Operational Data'!G30 -> 0 | F14: GWh | G14: =+'Operational Data'!H30 -> -
A18: Operator’s comments :
A29: Signed: | B29: Mark Gilsenan | G29: Date: | H29: 2023-01-26

Sheet Permit Compliance
A1: =+'Cover Page'!$B$29 -> Annual Performance Report 2022 | E1: =+'Cover Page'!$B$33 -> Tyseley Energy from Waste Plant
A3: Summary of Permit Compliance
A5: Compliance with permit limits for continuously monitored pollutants
A7: The plant met its emission limits as shown in the table below:
A8: Substance | C8: Percentage time compliant during operation | L8: Notes:
C9: Half-hourly limit | F9: Daily limit | L9: Report to 2 decimal places, i.e. xx.xx% Please provide a brief summary of each notification or non-compliance in the table (rather than just referring to notifications that were sent to the Regulator).
A10: Particulates | C10: 1 | F10: 1
A11: Oxides of nitrogen | C11: 1 | F11: 1
A12: Sulphur dioxide | C12: 1 | F12: 1
A13: Carbon monoxide | C13: 100% or 100% 95% of 10-min averages | F13: 1
A14: Total organic carbon | C14: 1 | F14: 1
A15: Hydrogen chloride | C15: 1 | F15: 1
A16: Hydrogen fluoride | C16: 1 | F16: 1
C17: 1 | F17: 1
A19: Summary of any notifications or non-compliances under the permit
A20: Date | B20: Summary of notification or non-compliance [including Line/Reference] | E20: Reason | H20: Measures taken to prevent reoccurrence
A27: Summary of any complaints received and actions to taken to resolve them.
A28: Date | B28: Summary of complaint [including Line/Reference] | E28: Reason * | H28: Measures taken to prevent reoccurrence
E34: * including whether substantiated by the operator or the EA

Sheet Improvements
A1: =+'Cover Page'!$B$29 -> Annual Performance Report 2022 | E1: =+'Cover Page'!$B$33 -> Tyseley Energy from Waste Plant
A3: Summary of Plant Improvements
A5: Summary of any efficiency improvements that have been completed within the year.
A6: n/a
A16: Summary of any permit improvement conditions that have been completed within the year and the resulting environmental benefits.
A17: n/a
A27: Summary of any changes to the plant or operating techniques which required a variation to the permit and a summary of the resulting environmental impact.
A28: n/a
A38: Summary of any other improvements made to the plant or planned to be made and a summary of the resulting environmental benefits.
A39: n/a

Sheet Public Liasion
A1: =+'Cover Page'!$B$29 -> Annual Performance Report 2022 | E1: =+'Cover Page'!$B$33 -> Tyseley Energy from Waste Plant
A3: Details of Public & Stakeholder Liasion
A5: Summary of events held during the reporting year.
A6: Date | C6: Description
A7: Bi-monthly | C7: Meetings with Birmingham City Council
A16: List of events planned for next year
A17: Date | C17: Description
A18: Bi-monthly | C18: Meetings with Birmingham City Council
A29: If you wish to be involved in the public liasion programme, please contact _________________

Sheet CO2 N2O
A1: =+'Cover Page'!$B$29 -> Annual Performance Report 2022 | C1: =+'Cover Page'!$B$33 -> Tyseley Energy from Waste Plant
A3: Carbon dioxide emissions and biogenic content of waste inputs | E3: Notes:
A5: Carbon dioxide emissions (all types of plant)
A6: Annual mass of carbon dioxide released | B6: x tonnes | C6: 310766
A7: Annual mass of carbon dioxide released per tonne of waste burned | B7: x tonnes | C7: =C6/'Operational Data'!G21 -> 0.8266860386
A8: Annual mass of carbon dioxide released per MWh of energy exported | B8: x tonnes | C8: =C6/'Operational Data'!G25 -> 1.686992775
A9: Description of how annual carbon dioxide mass emission has been calculated | B9: CEM data | E9: Note 1: Where available, data from CO2 CEMS should be used. Otherwise, where no CEMS data is available, a suitable emissions factor should be used based on the tonnage of waste burned e.g.0.992 tCO2/t waste as per Tolvik report 2021, or other justified emissions factor - refer to embedded Environment Agency guidance note above or updated version for suitable descriptive text.
A11: Nitrous oxide emissions (only plants which use ammonia or urea to abate NOx emissions)
A12: Annual mass emissions of nitrous oxide | B12: x tonnes | C12: 5.9
A13: Description of how annual nitrous oxide mass emission has been calculated | B13: CEM data | E13: Note 2: Where available, data from N2O CEMS should be used, or if no CEMS data is available, from periodic monitoring. Otherwise, a suitable emissions factor should be used based on the tonnage of waste burned e.g. 0.0981 kgN20/t waste as per 2021 Pollution Inventory data for plants with urea-based SNCR - refer to embedded Environment Agency guidance note above or updated version for suitable descriptive text.
A14: Total annual carbon dioxide and nitrous oxide emissions as carbon dioxide equivalent (whereby 1 t nitrous oxide is equivalent to 298 t carbon dioxide) | B14: x tonnes CO2e | C14: =(C12*298)+C6 -> 312524.2
A16: Biogenic fraction of the waste and biogenic CO2 emissions (only plants burning residual municipal waste, refuse derived fuel or solid recovered fuel)
A17: Yearly average biogenic percentage of the waste by net calorific value (NCV) | B17: 0.518 | C17: ='Operational Data'!G21*0.518 -> 194725.4223
A18: Description of how biogenic NCV percentage has been calculated or estimated | B18: 2017 WRAP data | E18: Note 3: Where available, data from waste sampling should be used; otherwise, an estimated figure with justification can be used, or a figure assumed on the basis of a national average e.g. 2017 WRAP data for residual waste of 51.8% biogenic energy content - refer to embedded Environment Agency guidance note above or updated version for suitable descriptive text, quoting standards where relevant.
A19: Percentage of total carbon dioxide emissions arising from biogenic waste | B19: 0.518 | C19: ='Operational Data'!G21*0.518 -> 194725.4223
A20: Description of how percentage biogenic carbon dioxide emissions have been calculated | B20: 2017 WRAP data | E20: Note 4: Examples include direct measurement via C14 method or BIOMA software - refer to embedded Environment Agency guidance note above or updated version for suitable descriptive text, quoting standards where relevant. Otherwise, as an approximation (and in lieu of any more accurate metrics which may be developed in future), the measured or estimated biogenic fraction by net calorific value can be assumed to be the same as the biogenic CO2 fraction of the total CO2 emissions from the plant.
A22: Comments:

Sheet Residue Quality
A1: =+'Cover Page'!$B$29 -> Annual Performance Report 2022 | H1: =+'Cover Page'!$B$33 -> Tyseley Energy from Waste Plant
A3: Residue Quality Monitoring Requirements
A5: Summary of monitoring undertaken and compliance
A6: As per permit requirements
A13: Commentary on any specific events
A14: Date & Event | C14: Description
A27: Residue Quality Monitoring Results
A28: Parameter (unit) | C28: Limit | D28: Normal Operation
D29: Bottom ash | I29: APC Residues
D30: Q1 | E30: Q2 | F30: Q3 | G30: Q4 | H30: Average
A31: Loss on Ignition (average %) | C31: <5% | D31: 2.32 | E31: 2.84 | F31: 3.38 | G31: 2.7 | H31: =AVERAGE(D31:G31) -> 2.81
A32: Total Organic Carbon (average %) | C32: <3%
A33: No. of Assessments Undertaken | C33: ---
A34: No. of Hazardous Results | C34: ---
A36: Comments :

Sheet Water
A1: =+'Cover Page'!$B$29 -> Annual Performance Report 2022 | E1: =+'Cover Page'!$B$33 -> Tyseley Energy from Waste Plant
A3: Emissions to Water
A5: Summary of monitoring undertaken and compliance
A6: As per Severn Trent Consent to discharge of trade effluent to public foul sewer
A13: Commentary on any specific events
A14: Date & Event | C14: Description
A22: Emissions to Water / Sewer
A23: Parameter | D23: Monitoring Frequency | F23: Limit | G23: Target | H23: Max. | I23: Average
A24: Outlet 1
A25: SULPHATE | D25: Periodic | F25: 1500 | H25: =MAX(K25:L25) -> 1260 | I25: =AVERAGE(K25:L25) -> 1072 | K25: 884 | L25: 1260
A26: CHRIOMIUM (Cr) | D26: Periodic | F26: 5 | H26: =MAX(K26:L26) -> 0.3 | I26: =AVERAGE(K26:L26) -> 0.176 | K26: 0.3 | L26: 0.052
A27: COPPER (Cu) | D27: Periodic | F27: 5 | H27: 0.55 | I27: 0.33 | K27: 0.55 | L27: 0.11
A28: LEAD (Pb) | D28: Periodic | F28: 5 | H28: 0.36 | I28: 0.223 | K28: 0.36 | L28: 0.086
A29: NICKEL (Ni) | D29: Periodic | F29: 5 | H29: 0.065 | I29: 0.063 | K29: 0.061 | L29: 0.065
A30: ZINC (Zn) | D30: Periodic | F30: 10 | H30: 2 | I30: 1.36 | K30: 2 | L30: 0.72
A31: SULPHIDE as S | D31: Periodic | F31: 1 | H31: 0.0879 | I31: 0.0879 | L31: 0.0879
A32: pH | D32: Periodic | F32: 12.5 | H32: 12 | I32: 10.6 | K32: 12 | L32: 9.2
A33: Outlet 2
A34: CHRIOMIUM (Cr) | D34: Periodic | F34: 5
A35: COPPER (Cu) | D35: Periodic | F35: 5
A36: LEAD (Pb) | D36: Periodic | F36: 5
A37: NICKEL (Ni) | D37: Periodic | F37: 5
A38: ZINC (Zn) | D38: Periodic | F38: 10
A39: pH | D39: Periodic | F39: 12.5

Sheet Air (periodic)
A1: =+'Cover Page'!$B$29 -> Annual Performance Report 2022 | E1: =+'Cover Page'!$B$33 -> Tyseley Energy from Waste Plant
A3: Emissions to Air (periodically monitored)
A5: Summary of monitoring undertaken, standards used and compliance | N5: Notes:
A6: As per permit requirments | N6: Template may require adjustment for any bespoke monitoring requirements of permit.
A9: Results of emissions to air that are periodically monitored
A10: Substance | C10: Ref. Period | D10: Emission Limit Value | J10: Average | N10: User to add additional tables as necessary, depending on whether quarterly or bi-annual reporting is required for the compliance year
F11: A1 (Q1) | G11: A1 (Q3) | H11: A2 (Q1) | I11: A2 (Q3) | J11: A1 | K11: A2
A12: Hydrogen fluoride | C12: 1 hr | D12: 2 mg/m3 | F12: 0.04 | G12: 0.06 | H12: 0.04 | I12: 0.05 | J12: =AVERAGE(F12:G12) -> 0.05 | K12: =AVERAGE(H12:I12) -> 0.045
A13: Cd and Th and their compounds | C13: 6-8hrs | D13: 0.05 mg/m3 | F13: 0.00078 | G13: 0.00062 | H13: 0.00076 | I13: 0.00076 | J13: =AVERAGE(F13:G13) -> 0.0007 | K13: =AVERAGE(H13:I13) -> 0.00076
A14: Hg and its compounds | C14: 6-8hrs | D14: 0.05 mg/m3 | F14: 0.00036 | G14: 0.00026 | H14: 0.0028 | I14: 0.0058 | J14: 0.00031 | K14: 0.0043
A15: Sb, As, Pb, Cr, Co, Cu, Mn, Ni, V and their compounds | C15: 6-8hrs | D15: 0.5 mg/m3 | F15: 0.1 | G15: 0.019 | H15: 0.013 | I15: 0.048 | J15: 0.0595 | K15: 0.0305
A16: Dioxins & Furans (I-TEQ) | C16: 6-8hrs | D16: 0.1 ng/m3 | F16: 0.0052 | G16: 0.0058 | H16: 0.0056 | I16: 0.015 | J16: 0.0055 | K16: 0.0103
A17: PCBs (WHO-TEQ Humans / Mammals) | C17: 6-8hrs | D17: None set ng/m3 | F17: 0.0007 | G17: 0.00079 | H17: 0.00085 | I17: 0.0014 | J17: 0.000745 | K17: 0.001125
A18: PCBs (WHO-TEQ Fish) | C18: 6-8hrs | D18: None set ng/m3 | F18: 5.1e-05 | G18: 7.1e-05 | H18: 5e-05 | I18: 9.1e-05 | J18: 6.1e-05 | K18: 7.05e-05
A19: PCBs (WHO-TEQ Birds) | C19: 6-8hrs | D19: None set ng/m3 | F19: 0.0078 | G19: 0.015 | H19: 0.0048 | I19: 0.01 | J19: 0.0114 | K19: 0.0074
A20: Dioxins & Furans (WHO-TEQ Humans / Mammals) | C20: 6-8hrs | D20: None set ng/m3 | F20: 0.0056 | G20: 0.0062 | H20: 0.0064 | I20: 0.016 | J20: 0.0059 | K20: 0.0112
A21: Dioxins & Furans (WHO-TEQ Fish) | C21: 6-8hrs | D21: None set ng/m3 | F21: 0.0046 | G21: 0.0057 | H21: 0.0062 | I21: 0.015 | J21: 0.00515 | K21: 0.0106
A22: Dioxins & Furans (WHO-TEQ Birds) | C22: 6-8hrs | D22: None set ng/m3 | F22: 0.0065 | G22: 0.0086 | H22: 0.0075 | I22: 0.023 | J22: 0.00755 | K22: 0.01525
A23: Nitrous Oxide (N2O) | C23: 1hr | D23: None set mg/m3 | F23: 0.5 | G23: 1.61 | H23: 0.26 | I23: 0.78 | J23: 1.055 | K23: 0.52
A24: Total PAH | C24: 6-8hrs | D24: None set µg/m3 | F24: 0.23 | G24: 0.72 | H24: 0.23 | I24: 0.2 | J24: 0.475 | K24: 0.215
A25: Anthanthrene | C25: 6-8hrs | D25: None set µg/m3 | F25: 0.0018 | G25: 0.0022 | H25: 0.0017 | I25: 0.002 | J25: 0.002 | K25: 0.00185
A26: Benzo(a)anthracene | C26: 6-8hrs | D26: None set µg/m3 | F26: 0.0018 | G26: 0.014 | H26: 0.0024 | I26: 0.002 | J26: 0.0079 | K26: 0.0022
A27: Benzo(a)pyrene | C27: 6-8hrs | D27: None set µg/m3 | F27: 0.0018 | G27: 0.0029 | H27: 0.0024 | I27: 0.002 | J27: 0.00235 | K27: 0.0022
A28: Benzo(b)fluoranthene | C28: 6-8hrs | D28: None set µg/m3 | F28: 0.0018 | G28: 0.015 | H28: 0.0033 | I28: 0.002 | J28: 0.0084 | K28: 0.00265
A29: Benzo(b)naptho(2,1-d) thiophene | C29: 6-8hrs | D29: None set µg/m3 | F29: 0.026 | G29: 0.0022 | H29: 0.0017 | I29: 0.002 | J29: 0.0141 | K29: 0.00185
A30: Benzo(c)phenanthrene | C30: 6-8hrs | D30: None set µg/m3 | F30: 0.0018 | G30: 0.016 | H30: 0.0017 | I30: 0.0023 | J30: 0.0089 | K30: 0.002
A31: Benzo(ghi)perylene | C31: 6-8hrs | D31: None set µg/m3 | F31: 0.0033 | G31: 0.013 | H31: 0.015 | I31: 0.009 | J31: 0.00815 | K31: 0.012
A32: Benzo(k)fluoranthene | C32: 6-8hrs | D32: None set µg/m3 | F32: 0.0018 | G32: 0.0062 | H32: 0.0017 | I32: 0.002 | J32: 0.004 | K32: 0.00185
A33: Cholanthrene | C33: 6-8hrs | D33: None set µg/m3 | F33: 0.0018 | G33: 0.0022 | H33: 0.0017 | I33: 0.002 | J33: 0.002 | K33: 0.00185
A34: Chrysene | C34: 6-8hrs | D34: None set µg/m3 | F34: 0.0019 | G34: 0.053 | H34: 0.0034 | I34: 0.0049 | J34: 0.02745 | K34: 0.00415
A35: Cyclopenta(cd)pyrene | C35: 6-8hrs | D35: None set µg/m3 | F35: 0.0018 | G35: 0.011 | H35: 0.0042 | I35: 0.002 | J35: 0.0064 | K35: 0.0031
A36: Dibenzo(ai)pyrene | C36: 6-8hrs | D36: None set µg/m3 | F36: 0.0018 | G36: 0.0022 | H36: 0.0017 | I36: 0.002 | J36: 0.002 | K36: 0.00185
A37: Dibenzo(ah)anthracene | C37: 6-8hrs | D37: None set µg/m3 | F37: 0.0018 | G37: 0.0022 | H37: 0.0017 | I37: 0.002 | J37: 0.002 | K37: 0.00185
A38: Fluoranthene | C38: 6-8hrs | D38: None set µg/m3 | F38: 0.028 | G38: 0.45 | H38: 0.073 | I38: 0.043 | J38: 0.239 | K38: 0.058
A39: Indeno(123-cd) pyrene | C39: 6-8hrs | D39: None set µg/m3 | F39: 0.0018 | G39: 0.0033 | H39: 0.0034 | I39: 0.002 | J39: 0.00255 | K39: 0.0027
A40: Naphthalene | C40: 6-8hrs | D40: None set µg/m3 | F40: 0.15 | G40: 0.12 | H40: 0.11 | I40: 0.12 | J40: 0.135 | K40: 0.115
A41: Comments :

Sheet Air (CEMS)
A1: =+'Cover Page'!$B$29 -> Annual Performance Report 2022 | I1: =+'Cover Page'!$B$33 -> Tyseley Energy from Waste Plant
A3: Emissions to Air (continously monitored)
P4: Notes:
A5: Summary of monitoring undertaken, standards used and compliance | P5: Template may require adjustment for any bespoke monitoring requirements of permit
A6: MCERT CEM System | P6: Report to 2 decimal places, i.e. xx.xx%
A11: Results of emissions to air that are continuously monitored (maximum and average values for each line)
A12: Substance | B12: Reference Period | C12: Emission Limit Value | D12: A1 | F12: A2 | H12: A3 | J12: A4 | L12: A5
D13: Max. | E13: Avg. | F13: Max. | G13: Avg. | H13: Max. | I13: Avg. | J13: Max. | K13: Avg. | L13: Max. | M13: Avg.
A14: Oxides of nitrogen | B14: Daily mean | C14: 200 mg/m3 | D14: =NOx!O19 -> 184.74 | E14: =NOx!N19 -> 163.23 | F14: =NOx!O34 -> 184.06 | G14: =NOx!N34 -> 165.6825
B15: ½ hourly mean | C15: 400 mg/m3 | D15: =NOx!M19 -> 319 | E15: =NOx!L19 -> 163.0933333 | F15: =NOx!M34 -> 313.2 | G15: =NOx!L34 -> 165.6925
A16: Particulates | B16: Daily mean | C16: 10 mg/m3 | D16: =Particulates!O19 -> 9.31 | E16: =Particulates!N19 -> 1.84375 | F16: =Particulates!O34 -> 4.94 | G16: =Particulates!N34 -> 0.36875
B17: ½ hourly mean | C17: 30 mg/m3 | D17: =Particulates!M19 -> 26.9 | E17: =Particulates!L19 -> 1.856666667 | F17: =Particulates!M34 -> 15.7 | G17: =Particulates!L34 -> 0.3758333333
A18: Total Organic Carbon | B18: Daily mean | C18: 10 mg/m3 | D18: =TOC!O19 -> 1.6 | E18: =TOC!N19 -> 0.40875 | F18: =TOC!O34 -> 4.3 | G18: =TOC!N34 -> 0.5916666667
B19: ½ hourly mean | C19: 20 mg/m3 | D19: =TOC!M19 -> 7.14 | E19: =TOC!L19 -> 0.4358333333 | F19: =TOC!M34 -> 14.3 | G19: =TOC!L34 -> 0.6208333333
A20: Hydrogen chloride | B20: Daily mean | C20: 10 mg/m3 | D20: =HCl!O19 -> 9.3 | E20: =HCl!N19 -> 6.387083333 | F20: =HCl!O34 -> 8.87 | G20: =HCl!N34 -> 6.39875
B21: ½ hourly mean | C21: 60 mg/m3 | D21: =HCl!M19 -> 56.9 | E21: =HCl!L19 -> 6.418333333 | F21: =HCl!M34 -> 57.9 | G21: =HCl!L34 -> 6.445833333
A22: Sulphur dioxide | B22: Daily mean | C22: 50 mg/m3 | D22: ='SO2'!O19 -> 27.7 | E22: ='SO2'!N19 -> 6.647083333 | F22: ='SO2'!O34 -> 33.85 | G22: ='SO2'!N34 -> 11.585
B23: ½ hourly mean | C23: 200 mg/m3 | D23: ='SO2'!M19 -> 180.8 | E23: ='SO2'!L19 -> 6.586666667 | F23: ='SO2'!M34 -> 175.7 | G23: ='SO2'!L34 -> 11.54916667
A24: Carbon monoxide | B24: Daily mean | C24: 50 mg/m3 | D24: ='CO 95% 10 min'!Q19 -> 26.8 | E24: ='CO 95% 10 min'!P19 -> 9.901666667 | F24: ='CO 95% 10 min'!Q34 -> 32.76 | G24: ='CO 95% 10 min'!P34 -> 11.75833333
B25: ½ hourly mean * | C25: 100 mg/m3 *
B26: 95%ile 10-min avg * | C26: 150 mg/m3 * | D26: ='CO 95% 10 min'!M19 -> 62.33333333 | E26: ='CO 95% 10 min'!N19 -> 9.795833333 | F26: ='CO 95% 10 min'!M34 -> 60.31666667 | G26: ='CO 95% 10 min'!N34 -> 11.77833333
A27: * = delete or amend as appropriate
A28: Comments :
A29: The CEM data submitted from May to December 2022 have not been subject to BS EN 14181:2014 QAL2 calibration. The report will be re-submitted to the Environment Agency with the calibrated data once those are available therefore the data submitted above in this report are subject to change.

Sheet HCl
A1: =+'Cover Page'!$B$29 -> Annual Performance Report 2022 | E1: =+'Cover Page'!$B$33 -> Tyseley Energy from Waste Plant
A3: Monitoring of Hydrogen Chloride emissions | D3: Whole Installation | G3: See Notes in Cell Q3 | J3: =+A3 -> Monitoring of Hydrogen Chloride emissions | N3: Per Combustion Line | Q3: Notes:
Q4: User to add logic to complete Whole installation, Table A5:G18. From the data in Per Combustion Line, Table J6:O79, subject to No. of lines installed
A5: mg/Nm3 | B5: 1/2 Hourly Reference Periods | E5: Daily Reference Periods
A6: =+'Cover Page'!C39 -> 2022 | B6: 1/2 hourly HCl ELV | C6: Monthly 1/2 hourly mean | D6: Highest 1/2 hourly maximum | E6: Daily HCl ELV | F6: Monthly daily mean | G6: Highest daily maximum | J6: =+A6 -> 2022 | K6: mg/Nm3 | L6: Monthly 1/2 hourly mean | M6: Monthly 1/2 hourly maximum | N6: Monthly daily mean | O6: Monthly daily maximum
A7: Jan | B7: 60 | C7: =AVERAGE(L7,L22) -> 6.96 | D7: =MAX(M7,M22) -> 31.42 | E7: 10 | F7: =AVERAGE(N7,N22) -> 6.94 | G7: =MAX(O7,O22) -> 8.87 | J7: A1 | K7: Jan | L7: 6.92 | M7: 27.55 | N7: 6.88 | O7: 7.67
A8: Feb | B8: 60 | C8: =AVERAGE(L8,L23) -> 6.575 | D8: =MAX(M8,M23) -> 53.24 | E8: 10 | F8: =AVERAGE(N8,N23) -> 6.575 | G8: =MAX(O8,O23) -> 8.71 | K8: Feb | L8: 6.81 | M8: 53.24 | N8: 6.81 | O8: 8.71
A9: Mar | B9: 60 | C9: 5.805 | D9: 40.36 | E9: 10 | F9: 5.845 | G9: 7.51 | K9: Mar | L9: 5.92 | M9: 23.54 | N9: 5.92 | O9: 7.23 | Q9: Whole Installation table A5:G18:
A10: Apr | B10: 60 | C10: 6.445 | D10: 49.88 | E10: 10 | F10: 6.455 | G10: 8.14 | K10: Apr | L10: 6.07 | M10: 36.96 | N10: 6.09 | O10: 7.69 | Q10: Mean: for 1/2 hourly and daily periods calculate mean of values across all operational combustion lines for the month
A11: May | B11: 60 | C11: 6 | D11: 45.2 | E11: 10 | F11: 5.9 | G11: 8.1 | K11: May | L11: 6 | M11: 33.9 | N11: 5.945 | O11: 7.4
A12: Jun | B12: 60 | C12: 5.8 | D12: 55.2 | E12: 10 | F12: 5.7 | G12: 7.9 | K12: Jun | L12: 6.1 | M12: 55.2 | N12: 6 | O12: 7.6
A13: Jul | B13: 60 | C13: 6.45 | D13: 57.9 | E13: 10 | F13: 6.45 | G13: 9.3 | K13: Jul | L13: 6.6 | M13: 56.9 | N13: 6.6 | O13: 9.3 | Q13: Maximum: for 1/2 hourly and daily periods use the highest value across all operational combustion lines for the month
A14: Aug | B14: 60 | C14: 6.7 | D14: 48.4 | E14: 10 | F14: 6.6 | G14: 9.3 | K14: Aug | L14: 6.6 | M14: 34.2 | N14: 6.6 | O14: 9.3
A15: Sep | B15: 60 | C15: 6.8 | D15: 31.5 | E15: 10 | F15: 6.75 | G15: 7.9 | K15: Sep | L15: 6.8 | M15: 31.5 | N15: 6.8 | O15: 7.9
A16: Oct | B16: 60 | C16: 6.95 | D16: 34.5 | E16: 10 | F16: 6.9 | G16: 7.9 | K16: Oct | L16: 6.9 | M16: 34.5 | N16: 6.8 | O16: 7.6
A17: Nov | B17: 60 | C17: 6.35 | D17: 32.4 | E17: 10 | F17: 6.3 | G17: 7.5 | K17: Nov | L17: 6.2 | M17: 21.2 | N17: 6.2 | O17: 7.1
A18: Dec | B18: 60 | C18: 6.35 | D18: 46.6 | E18: 10 | F18: 6.3 | G18: 7.7 | K18: Dec | L18: 6.1 | M18: 46.6 | N18: 6 | O18: 7.7
K19: Annual | L19: =AVERAGE(L7:L18) -> 6.418333333 | M19: =MAX(M7:M18) -> 56.9 | N19: =AVERAGE(N7:N18) -> 6.387083333 | O19: =MAX(O7:O18) -> 9.3
J21: =+A6 -> 2022 | K21: mg/Nm3 | L21: Monthly 1/2 hourly mean | M21: Monthly 1/2 hourly maximum | N21: Monthly daily mean | O21: Monthly daily maximum
J22: A2 | K22: Jan | L22: 7 | M22: 31.42 | N22: 7 | O22: 8.87
K23: Feb | L23: 6.34 | M23: 40.77 | N23: 6.34 | O23: 7.47
K24: Mar | L24: 5.69 | M24: 40.36 | N24: 5.77 | O24: 7.51
K25: Apr | L25: 6.82 | M25: 49.88 | N25: 6.82 | O25: 8.14
K26: May | L26: 6 | M26: 45.2 | N26: 5.855 | O26: 8.1
K27: Jun | L27: 5.5 | M27: 42.4 | N27: 5.4 | O27: 7.9
K28: Jul | L28: 6.3 | M28: 57.9 | N28: 6.3 | O28: 8.3
K29: Aug | L29: 6.8 | M29: 48.4 | N29: 6.6 | O29: 7.9
K30: Sep | L30: 6.8 | M30: 29.4 | N30: 6.7 | O30: 7.9
K31: Oct | L31: 7 | M31: 28.3 | N31: 7 | O31: 7.9
K32: Nov | L32: 6.5 | M32: 32.4 | N32: 6.4 | O32: 7.5
K33: Dec | L33: 6.6 | M33: 29.5 | N33: 6.6 | O33: 7.4
K34: Annual | L34: =AVERAGE(L22:L33) -> 6.445833333 | M34: =MAX(M22:M33) -> 57.9 | N34: =AVERAGE(N22:N33) -> 6.39875 | O34: =MAX(O22:O33) -> 8.87
J36: =+A6 -> 2022 | K36: mg/Nm3 | L36: Monthly 1/2 hourly mean | M36: Monthly 1/2 hourly maximum | N36: Monthly daily mean | O36: Monthly daily maximum
J37: A3 | K37: Jan
K38: Feb
K39: Mar
K40: Apr
K41: May
K42: Jun
K43: Jul
K44: Aug
K45: Sep
K46: Oct
K47: Nov
A48: Comments : | K48: Dec
A49: The CEM data submitted from May to December 2022 have not been subject to BS EN 14181:2014 QAL2 calibration. The report will be re-submitted to the Environment Agency with the calibrated data once those are available therefore the data submitted above in this report are subject to change. | K49: Annual | L49: =AVERAGE(L37:L48) ->  | M49: =MAX(M37:M48) -> 0 | N49: =AVERAGE(N37:N48) ->  | O49: =MAX(O37:O48) -> 0
J51: =+A6 -> 2022 | K51: mg/Nm3 | L51: Monthly 1/2 hourly mean | M51: Monthly 1/2 hourly maximum | N51: Monthly daily mean | O51: Monthly daily maximum
J52: A4 | K52: Jan
K53: Feb
K54: Mar
K55: Apr
K56: May
K57: Jun
K58: Jul
K59: Aug
K60: Sep
K61: Oct
K62: Nov
K63: Dec
K64: Annual | L64: =AVERAGE(L52:L63) ->  | M64: =MAX(M52:M63) -> 0 | N64: =AVERAGE(N52:N63) ->  | O64: =MAX(O52:O63) -> 0
J66: =+A6 -> 2022 | K66: mg/Nm3 | L66: Monthly 1/2 hourly mean | M66: Monthly 1/2 hourly maximum | N66: Monthly daily mean | O66: Monthly daily maximum
J67: A5 | K67: Jan
K68: Feb
K69: Mar
K70: Apr
K71: May
K72: Jun
K73: Jul
K74: Aug
K75: Sep
K76: Oct
K77: Nov
K78: Dec
K79: Annual | L79: =AVERAGE(L67:L78) ->  | M79: =MAX(M67:M78) -> 0 | N79: =AVERAGE(N67:N78) ->  | O79: =MAX(O67:O78) -> 0

Sheet SO2
A1: =+'Cover Page'!$B$29 -> Annual Performance Report 2022 | E1: =+'Cover Page'!$B$33 -> Tyseley Energy from Waste Plant
A3: Monitoring of Sulphur dioxide emissions | D3: Whole Installation | G3: See Notes in Cell Q3 | J3: =+A3 -> Monitoring of Sulphur dioxide emissions | N3: Per Combustion Line | Q3: Notes:
Q4: User to add logic to complete Whole installation, Table A5:G18. From the data in Per Combustion Line, Table J6:O79, subject to No. of lines installed
A5: mg/Nm3 | B5: 1/2 Hourly Reference Periods | E5: Daily Reference Periods
A6: =+'Cover Page'!C39 -> 2022 | B6: 1/2 hourly SO2 ELV | C6: Monthly 1/2 hourly mean | D6: Highest 1/2 hourly maximum | E6: Daily SO2 ELV | F6: Monthly daily mean | G6: Highest daily maximum | J6: =+A6 -> 2022 | K6: mg/Nm3 | L6: Monthly 1/2 hourly mean | M6: Monthly 1/2 hourly maximum | N6: Monthly daily mean | O6: Monthly daily maximum
A7: Jan | B7: 200 | C7: =AVERAGE(L7,L22) -> 11.58 | D7: =MAX(M7,M22) -> 149.94 | E7: 50 | F7: =AVERAGE(N7,N22) -> 11.505 | G7: =MAX(O7,O22) -> 30.5 | J7: A1 | K7: Jan | L7: 7.18 | M7: 109.06 | N7: 7.06 | O7: 16.11
A8: Feb | B8: 200 | C8: =AVERAGE(L8,L23) -> 14.25 | D8: =MAX(M8,M23) -> 145.35 | E8: 50 | F8: =AVERAGE(N8,N23) -> 14.255 | G8: =MAX(O8,O23) -> 33.85 | K8: Feb | L8: 7.71 | M8: 97.18 | N8: 7.71 | O8: 13.44
A9: Mar | B9: 200 | C9: 14.945 | D9: 111.34 | E9: 50 | F9: 15.055 | G9: 30.79 | K9: Mar | L9: 7.62 | M9: 83.12 | N9: 7.62 | O9: 16.71 | Q9: Whole Installation table A5:G18:
A10: Apr | B10: 200 | C10: 15.54 | D10: 129.87 | E10: 50 | F10: 15.545 | G10: 33.51 | K10: Apr | L10: 9.63 | M10: 106.9 | N10: 9.65 | O10: 19.02 | Q10: Mean: for 1/2 hourly and daily periods calculate mean of values across all operational combustion lines for the month
A11: May | B11: 200 | C11: 10.4 | D11: 180.8 | E11: 50 | F11: 11.4825 | G11: 27.7 | K11: May | L11: 9.6 | M11: 180.8 | N11: 10.825 | O11: 27.7
A12: Jun | B12: 200 | C12: 10.05 | D12: 154.5 | E12: 50 | F12: 9.95 | G12: 22.2 | K12: Jun | L12: 8.3 | M12: 154.5 | N12: 8.3 | O12: 20
A13: Jul | B13: 200 | C13: 5.5 | D13: 125.3 | E13: 50 | F13: 5.45 | G13: 12.9 | K13: Jul | L13: 5.3 | M13: 106.1 | N13: 5.3 | O13: 12.9 | Q13: Maximum: for 1/2 hourly and daily periods use the highest value across all operational combustion lines for the month
A14: Aug | B14: 200 | C14: 4.35 | D14: 99.4 | E14: 50 | F14: 4.25 | G14: 13.8 | K14: Aug | L14: 3.9 | M14: 99.4 | N14: 3.8 | O14: 13.8
A15: Sep | B15: 200 | C15: 4.8 | D15: 134.9 | E15: 50 | F15: 4.8 | G15: 11.3 | K15: Sep | L15: 4 | M15: 104.2 | N15: 4 | O15: 9.3
A16: Oct | B16: 200 | C16: 5.35 | D16: 125.5 | E16: 50 | F16: 5.3 | G16: 10.9 | K16: Oct | L16: 5 | M16: 109.7 | N16: 5 | O16: 10.8
A17: Nov | B17: 200 | C17: 5.35 | D17: 162.7 | E17: 50 | F17: 5.2 | G17: 11.1 | K17: Nov | L17: 5.1 | M17: 162.7 | N17: 5 | O17: 8.7
A18: Dec | B18: 200 | C18: 6.7 | D18: 172 | E18: 50 | F18: 6.6 | G18: 16.2 | K18: Dec | L18: 5.7 | M18: 172 | N18: 5.5 | O18: 12.4
K19: Annual | L19: =AVERAGE(L7:L18) -> 6.586666667 | M19: =MAX(M7:M18) -> 180.8 | N19: =AVERAGE(N7:N18) -> 6.647083333 | O19: =MAX(O7:O18) -> 27.7
J21: =+A6 -> 2022 | K21: mg/Nm3 | L21: Monthly 1/2 hourly mean | M21: Monthly 1/2 hourly maximum | N21: Monthly daily mean | O21: Monthly daily maximum
J22: A2 | K22: Jan | L22: 15.98 | M22: 149.94 | N22: 15.95 | O22: 30.5
K23: Feb | L23: 20.79 | M23: 145.35 | N23: 20.8 | O23: 33.85
K24: Mar | L24: 22.27 | M24: 111.34 | N24: 22.49 | O24: 30.79
K25: Apr | L25: 21.45 | M25: 129.87 | N25: 21.44 | O25: 33.51
K26: May | L26: 11.2 | M26: 175.7 | N26: 12.14 | O26: 21.5
K27: Jun | L27: 11.8 | M27: 127.1 | N27: 11.6 | O27: 22.2
K28: Jul | L28: 5.7 | M28: 125.3 | N28: 5.6 | O28: 11.3
K29: Aug | L29: 4.8 | M29: 75.2 | N29: 4.7 | O29: 12.2
K30: Sep | L30: 5.6 | M30: 134.9 | N30: 5.6 | O30: 11.3
K31: Oct | L31: 5.7 | M31: 125.5 | N31: 5.6 | O31: 10.9
K32: Nov | L32: 5.6 | M32: 155.5 | N32: 5.4 | O32: 11.1
K33: Dec | L33: 7.7 | M33: 171.3 | N33: 7.7 | O33: 16.2
K34: Annual | L34: =AVERAGE(L22:L33) -> 11.54916667 | M34: =MAX(M22:M33) -> 175.7 | N34: =AVERAGE(N22:N33) -> 11.585 | O34: =MAX(O22:O33) -> 33.85
J36: =+A6 -> 2022 | K36: mg/Nm3 | L36: Monthly 1/2 hourly mean | M36: Monthly 1/2 hourly maximum | N36: Monthly daily mean | O36: Monthly daily maximum
J37: A3 | K37: Jan
K38: Feb
K39: Mar
K40: Apr
K41: May
K42: Jun
K43: Jul
K44: Aug
K45: Sep
K46: Oct
K47: Nov
A48: Comments : | K48: Dec
A49: The CEM data submitted from May to December 2022 have not been subject to BS EN 14181:2014 QAL2 calibration. The report will be re-submitted to the Environment Agency with the calibrated data once those are available therefore the data submitted above in this report are subject to change. | K49: Annual | L49: =AVERAGE(L37:L48) ->  | M49: =MAX(M37:M48) -> 0 | N49: =AVERAGE(N37:N48) ->  | O49: =MAX(O37:O48) -> 0
J51: =+A6 -> 2022 | K51: mg/Nm3 | L51: Monthly 1/2 hourly mean | M51: Monthly 1/2 hourly maximum | N51: Monthly daily mean | O51: Monthly daily maximum
J52: A4 | K52: Jan
K53: Feb
K54: Mar
K55: Apr
K56: May
K57: Jun
K58: Jul
K59: Aug
K60: Sep
K61: Oct
K62: Nov
K63: Dec
K64: Annual | L64: =AVERAGE(L52:L63) ->  | M64: =MAX(M52:M63) -> 0 | N64: =AVERAGE(N52:N63) ->  | O64: =MAX(O52:O63) -> 0
J66: =+A6 -> 2022 | K66: mg/Nm3 | L66: Monthly 1/2 hourly mean | M66: Monthly 1/2 hourly maximum | N66: Monthly daily mean | O66: Monthly daily maximum
J67: A5 | K67: Jan
K68: Feb
K69: Mar
K70: Apr
K71: May
K72: Jun
K73: Jul
K74: Aug
K75: Sep
K76: Oct
K77: Nov
K78: Dec
K79: Annual | L79: =AVERAGE(L67:L78) ->  | M79: =MAX(M67:M78) -> 0 | N79: =AVERAGE(N67:N78) ->  | O79: =MAX(O67:O78) -> 0

Sheet NOx
A1: =+'Cover Page'!$B$29 -> Annual Performance Report 2022 | E1: =+'Cover Page'!$B$33 -> Tyseley Energy from Waste Plant
A3: Monitoring of Oxides of Nitrogen emissions | D3: Whole Installation | G3: See Notes in Cell Q3 | J3: =+A3 -> Monitoring of Oxides of Nitrogen emissions | N3: Per Combustion Line | Q3: Notes:
Q4: User to add logic to complete Whole installation, Table A5:G18. From the data in Per Combustion Line, Table J6:O79, subject to No. of lines installed
A5: mg/Nm3 | B5: 1/2 Hourly Reference Periods | E5: Daily Reference Periods
A6: =+'Cover Page'!C39 -> 2022 | B6: 1/2 hourly NOx ELV | C6: Monthly 1/2 hourly mean | D6: Highest 1/2 hourly maximum | E6: Daily NOx ELV | F6: Monthly daily mean | G6: Highest daily maximum | J6: =+A6 -> 2022 | K6: mg/Nm3 | L6: Monthly 1/2 hourly mean | M6: Monthly 1/2 hourly maximum | N6: Monthly daily mean | O6: Monthly daily maximum
A7: Jan | B7: 400 | C7: =AVERAGE(L7,L22) -> 164.265 | D7: =MAX(M7,M22) -> 257.01 | E7: 200 | F7: =AVERAGE(N7,N22) -> 164.33 | G7: =MAX(O7,O22) -> 180.66 | J7: A1 | K7: Jan | L7: 159.63 | M7: 197.33 | N7: 159.82 | O7: 180.66
A8: Feb | B8: 400 | C8: 161.77 | D8: =MAX(M8,M23) -> 240.11 | E8: 200 | F8: 161.78 | G8: =MAX(O8,O23) -> 170.92 | K8: Feb | L8: 163.78 | M8: 222.55 | N8: 163.79 | O8: 170.92
A9: Mar | B9: 400 | C9: 165.145 | D9: 227.4 | E9: 200 | F9: 165.13 | G9: 184.74 | K9: Mar | L9: 162 | M9: 212.72 | N9: 161.98 | O9: 184.74 | Q9: Whole Installation table A5:G18:
A10: Apr | B10: 400 | C10: 171.835 | D10: 253.32 | E10: 200 | F10: 172.03 | G10: 184.44 | K10: Apr | L10: 170.31 | M10: 239.84 | N10: 170.71 | O10: 184.44 | Q10: Mean: for 1/2 hourly and daily periods calculate mean of values across all operational combustion lines for the month
A11: May | B11: 400 | C11: 160.85 | D11: 308.7 | E11: 200 | F11: 162.055 | G11: 183.4 | K11: May | L11: 159.1 | M11: 230.01 | N11: 160.46 | O11: 174
A12: Jun | B12: 400 | C12: 166.3 | D12: 264.7 | E12: 200 | F12: 165.75 | G12: 183.2 | K12: Jun | L12: 163.3 | M12: 246.4 | N12: 163 | O12: 175.8
A13: Jul | B13: 400 | C13: 166.3 | D13: 261.8 | E13: 200 | F13: 166.4 | G13: 180.3 | K13: Jul | L13: 164.8 | M13: 261.8 | N13: 165 | O13: 177.6 | Q13: Maximum: for 1/2 hourly and daily periods use the highest value across all operational combustion lines for the month
A14: Aug | B14: 400 | C14: 163.6 | D14: 257 | E14: 200 | F14: 163.75 | G14: 176.8 | K14: Aug | L14: 162.8 | M14: 257 | N14: 162.8 | O14: 176.8
A15: Sep | B15: 400 | C15: 164.35 | D15: 265.8 | E15: 200 | F15: 164.25 | G15: 168.3 | K15: Sep | L15: 164.4 | M15: 223.8 | N15: 164.3 | O15: 167.1
A16: Oct | B16: 400 | C16: 164.75 | D16: 257 | E16: 200 | F16: 164.7 | G16: 173.9 | K16: Oct | L16: 164 | M16: 256.2 | N16: 164 | O16: 169.1
A17: Nov | B17: 400 | C17: 162.3 | D17: 319 | E17: 200 | F17: 162.15 | G17: 170.7 | K17: Nov | L17: 161.7 | M17: 319 | N17: 161.6 | O17: 168
A18: Dec | B18: 400 | C18: 161.25 | D18: 313.2 | E18: 200 | F18: 161.15 | G18: 171.7 | K18: Dec | L18: 161.3 | M18: 242.4 | N18: 161.3 | O18: 170
K19: Annual | L19: =AVERAGE(L7:L18) -> 163.0933333 | M19: =MAX(M7:M18) -> 319 | N19: =AVERAGE(N7:N18) -> 163.23 | O19: =MAX(O7:O18) -> 184.74
J21: =+A6 -> 2022 | K21: mg/Nm3 | L21: Monthly 1/2 hourly mean | M21: Monthly 1/2 hourly maximum | N21: Monthly daily mean | O21: Monthly daily maximum
J22: A2 | K22: Jan | L22: 168.9 | M22: 257.01 | N22: 168.84 | O22: 179.57
K23: Feb | L23: 159.76 | M23: 240.11 | N23: 159.77 | O23: 170.87
K24: Mar | L24: 168.29 | M24: 227.4 | N24: 168.28 | O24: 181.31
K25: Apr | L25: 173.36 | M25: 253.32 | N25: 173.35 | O25: 184.06
K26: May | L26: 162.6 | M26: 308.7 | N26: 163.65 | O26: 183.4
K27: Jun | L27: 169.3 | M27: 264.7 | N27: 168.5 | O27: 183.2
K28: Jul | L28: 167.8 | M28: 251.7 | N28: 167.8 | O28: 180.3
K29: Aug | L29: 164.4 | M29: 253.8 | N29: 164.7 | O29: 175.2
K30: Sep | L30: 164.3 | M30: 265.8 | N30: 164.2 | O30: 168.3
K31: Oct | L31: 165.5 | M31: 257 | N31: 165.4 | O31: 173.9
K32: Nov | L32: 162.9 | M32: 302.8 | N32: 162.7 | O32: 170.7
K33: Dec | L33: 161.2 | M33: 313.2 | N33: 161 | O33: 171.7
K34: Annual | L34: =AVERAGE(L22:L33) -> 165.6925 | M34: =MAX(M22:M33) -> 313.2 | N34: =AVERAGE(N22:N33) -> 165.6825 | O34: =MAX(O22:O33) -> 184.06
J36: =+A6 -> 2022 | K36: mg/Nm3 | L36: Monthly 1/2 hourly mean | M36: Monthly 1/2 hourly maximum | N36: Monthly daily mean | O36: Monthly daily maximum
J37: A3 | K37: Jan
K38: Feb
K39: Mar
K40: Apr
K41: May
K42: Jun
K43: Jul
K44: Aug
K45: Sep
K46: Oct
K47: Nov
A48: Comments : | K48: Dec
A49: The CEM data submitted from May to December 2022 have not been subject to BS EN 14181:2014 QAL2 calibration. The report will be re-submitted to the Environment Agency with the calibrated data once those are available therefore the data submitted above in this report are subject to change. | K49: Annual | L49: =AVERAGE(L37:L48) ->  | M49: =MAX(M37:M48) -> 0 | N49: =AVERAGE(N37:N48) ->  | O49: =MAX(O37:O48) -> 0
J51: =+A6 -> 2022 | K51: mg/Nm3 | L51: Monthly 1/2 hourly mean | M51: Monthly 1/2 hourly maximum | N51: Monthly daily mean | O51: Monthly daily maximum
J52: A4 | K52: Jan
K53: Feb
K54: Mar
K55: Apr
K56: May
K57: Jun
K58: Jul
K59: Aug
K60: Sep
K61: Oct
K62: Nov
K63: Dec
K64: Annual | L64: =AVERAGE(L52:L63) ->  | M64: =MAX(M52:M63) -> 0 | N64: =AVERAGE(N52:N63) ->  | O64: =MAX(O52:O63) -> 0
J66: =+A6 -> 2022 | K66: mg/Nm3 | L66: Monthly 1/2 hourly mean | M66: Monthly 1/2 hourly maximum | N66: Monthly daily mean | O66: Monthly daily maximum
J67: A5 | K67: Jan
K68: Feb
K69: Mar
K70: Apr
K71: May
K72: Jun
K73: Jul
K74: Aug
K75: Sep
K76: Oct
K77: Nov
K78: Dec
K79: Annual | L79: =AVERAGE(L67:L78) ->  | M79: =MAX(M67:M78) -> 0 | N79: =AVERAGE(N67:N78) ->  | O79: =MAX(O67:O78) -> 0

Sheet TOC
A1: =+'Cover Page'!$B$29 -> Annual Performance Report 2022 | E1: =+'Cover Page'!$B$33 -> Tyseley Energy from Waste Plant
A3: Monitoring of Total organic carbon emissions | D3: Whole Installation | G3: See Notes in Cell Q3 | J3: =+A3 -> Monitoring of Total organic carbon emissions | N3: Per Combustion Line | Q3: Notes:
Q4: User to add logic to complete Whole installation, Table A5:G18. From the data in Per Combustion Line, Table J6:O79, subject to No. of lines installed
A5: mg/Nm3 | B5: 1/2 Hourly Reference Periods | E5: Daily Reference Periods
A6: =+'Cover Page'!C39 -> 2022 | B6: 1/2 hourly TOC ELV | C6: Monthly 1/2 hourly mean | D6: Highest 1/2 hourly maximum | E6: Daily TOC ELV | F6: Monthly daily mean | G6: Highest daily maximum | J6: =+A6 -> 2022 | K6: mg/Nm3 | L6: Monthly 1/2 hourly mean | M6: Monthly 1/2 hourly maximum | N6: Monthly daily mean | O6: Monthly daily maximum
A7: Jan | B7: 20 | C7: =AVERAGE(L7,L22) -> 0.395 | D7: =MAX(M7,M22) -> 4.38 | E7: 10 | F7: =AVERAGE(N7,N22) -> 0.4 | G7: =MAX(O7,O22) -> 0.97 | J7: A1 | K7: Jan | L7: 0.14 | M7: 1.84 | N7: 0.14 | O7: 0.29
A8: Feb | B8: 20 | C8: 0.395 | D8: =MAX(M8,M23) -> 1.69 | E8: 10 | F8: 0.395 | G8: =MAX(O8,O23) -> 0.89 | K8: Feb | L8: 0.18 | M8: 0.97 | N8: 0.18 | O8: 0.57
A9: Mar | B9: 20 | C9: 0.52 | D9: 5.45 | E9: 10 | F9: 0.505 | G9: 1.16 | K9: Mar | L9: 0.38 | M9: 3.02 | N9: 0.38 | O9: 1.05 | Q9: Whole Installation table A5:G18:
A10: Apr | B10: 20 | C10: 0.68 | D10: 8.74 | E10: 10 | F10: 0.675 | G10: 1.6 | K10: Apr | L10: 0.33 | M10: 7.14 | N10: 0.32 | O10: 0.9 | Q10: Mean: for 1/2 hourly and daily periods calculate mean of values across all operational combustion lines for the month
A11: May | B11: 20 | C11: 0.65 | D11: 14.3 | E11: 10 | F11: 0.6775 | G11: 2 | K11: May | L11: 0.4 | M11: 2.2 | N11: 0.385 | O11: 0.7
A12: Jun | B12: 20 | C12: 0.5 | D12: 6.7 | E12: 10 | F12: 0.5 | G12: 0.9 | K12: Jun | L12: 0.6 | M12: 6.7 | N12: 0.6 | O12: 0.9
A13: Jul | B13: 20 | C13: 0.5 | D13: 10.8 | E13: 10 | F13: 0.45 | G13: 0.9 | K13: Jul | L13: 0.5 | M13: 6.1 | N13: 0.5 | O13: 0.7 | Q13: Maximum: for 1/2 hourly and daily periods use the highest value across all operational combustion lines for the month
A14: Aug | B14: 20 | C14: 0.55 | D14: 10.2 | E14: 10 | F14: 0.5 | G14: 1.1 | K14: Aug | L14: 0.5 | M14: 2.5 | N14: 0.5 | O14: 0.6
A15: Sep | B15: 20 | C15: 0.7 | D15: 7.2 | E15: 10 | F15: 0.6 | G15: 4.3 | K15: Sep | L15: 0.6 | M15: 2.9 | N15: 0.5 | O15: 0.8
A16: Oct | B16: 20 | C16: 0.45 | D16: 6.2 | E16: 10 | F16: 0.45 | G16: 1 | K16: Oct | L16: 0.5 | M16: 6.2 | N16: 0.5 | O16: 1
A17: Nov | B17: 20 | C17: 0.45 | D17: 5.6 | E17: 10 | F17: 0.4 | G17: 1.1 | K17: Nov | L17: 0.5 | M17: 5.6 | N17: 0.4 | O17: 0.9
A18: Dec | B18: 20 | C18: 0.55 | D18: 9.9 | E18: 10 | F18: 0.45 | G18: 1.6 | K18: Dec | L18: 0.6 | M18: 6.9 | N18: 0.5 | O18: 1.6
K19: Annual | L19: =AVERAGE(L7:L18) -> 0.4358333333 | M19: =MAX(M7:M18) -> 7.14 | N19: =AVERAGE(N7:N18) -> 0.40875 | O19: =MAX(O7:O18) -> 1.6
J21: =+A6 -> 2022 | K21: mg/Nm3 | L21: Monthly 1/2 hourly mean | M21: Monthly 1/2 hourly maximum | N21: Monthly daily mean | O21: Monthly daily maximum
J22: A2 | K22: Jan | L22: 0.65 | M22: 4.38 | N22: 0.66 | O22: 0.97
K23: Feb | L23: 0.61 | M23: 1.69 | N23: 0.61 | O23: 0.89
K24: Mar | L24: 0.66 | M24: 5.45 | N24: 0.63 | O24: 1.16
K25: Apr | L25: 1.03 | M25: 8.74 | N25: 1.03 | O25: 1.6
K26: May | L26: 0.9 | M26: 14.3 | N26: 0.97 | O26: 2
K27: Jun | L27: 0.4 | M27: 2.9 | N27: 0.4 | O27: 0.7
K28: Jul | L28: 0.5 | M28: 10.8 | N28: 0.4 | O28: 0.9
K29: Aug | L29: 0.6 | M29: 10.2 | N29: 0.5 | O29: 1.1
K30: Sep | L30: 0.8 | M30: 7.2 | N30: 0.7 | O30: 4.3
K31: Oct | L31: 0.4 | M31: 6.1 | N31: 0.4 | O31: 0.7
K32: Nov | L32: 0.4 | M32: 5.4 | N32: 0.4 | O32: 1.1
K33: Dec | L33: 0.5 | M33: 9.9 | N33: 0.4 | O33: 0.7
K34: Annual | L34: =AVERAGE(L22:L33) -> 0.6208333333 | M34: =MAX(M22:M33) -> 14.3 | N34: =AVERAGE(N22:N33) -> 0.5916666667 | O34: =MAX(O22:O33) -> 4.3
J36: =+A6 -> 2022 | K36: mg/Nm3 | L36: Monthly 1/2 hourly mean | M36: Monthly 1/2 hourly maximum | N36: Monthly daily mean | O36: Monthly daily maximum
J37: A3 | K37: Jan
K38: Feb
K39: Mar
K40: Apr
K41: May
K42: Jun
K43: Jul
K44: Aug
K45: Sep
K46: Oct
K47: Nov
A48: Comments : | K48: Dec
A49: The CEM data submitted from May to December 2022 have not been subject to BS EN 14181:2014 QAL2 calibration. The report will be re-submitted to the Environment Agency with the calibrated data once those are available therefore the data submitted above in this report are subject to change. | K49: Annual | L49: =AVERAGE(L37:L48) ->  | M49: =MAX(M37:M48) -> 0 | N49: =AVERAGE(N37:N48) ->  | O49: =MAX(O37:O48) -> 0
J51: =+A6 -> 2022 | K51: mg/Nm3 | L51: Monthly 1/2 hourly mean | M51: Monthly 1/2 hourly maximum | N51: Monthly daily mean | O51: Monthly daily maximum
J52: A4 | K52: Jan
K53: Feb
K54: Mar
K55: Apr
K56: May
K57: Jun
K58: Jul
K59: Aug
K60: Sep
K61: Oct
K62: Nov
K63: Dec
K64: Annual | L64: =AVERAGE(L52:L63) ->  | M64: =MAX(M52:M63) -> 0 | N64: =AVERAGE(N52:N63) ->  | O64: =MAX(O52:O63) -> 0
J66: =+A6 -> 2022 | K66: mg/Nm3 | L66: Monthly 1/2 hourly mean | M66: Monthly 1/2 hourly maximum | N66: Monthly daily mean | O66: Monthly daily maximum
J67: A5 | K67: Jan
K68: Feb
K69: Mar
K70: Apr
K71: May
K72: Jun
K73: Jul
K74: Aug
K75: Sep
K76: Oct
K77: Nov
K78: Dec
K79: Annual | L79: =AVERAGE(L67:L78) ->  | M79: =MAX(M67:M78) -> 0 | N79: =AVERAGE(N67:N78) ->  | O79: =MAX(O67:O78) -> 0

Sheet Particulates
A1: =+'Cover Page'!$B$29 -> Annual Performance Report 2022 | E1: =+'Cover Page'!$B$33 -> Tyseley Energy from Waste Plant
A3: Monitoring of Particulate matter emissions | D3: Whole Installation | G3: See Notes in Cell Q3 | J3: =+A3 -> Monitoring of Particulate matter emissions | N3: Per Combustion Line | Q3: Notes:
Q4: User to add logic to complete Whole installation, Table A5:G18. From the data in Per Combustion Line, Table J6:O79, subject to No. of lines installed
A5: mg/Nm3 | B5: 1/2 Hourly Reference Periods | E5: Daily Reference Periods
A6: =+'Cover Page'!C39 -> 2022 | B6: 1/2 hourly PM ELV | C6: Monthly 1/2 hourly mean | D6: Highest 1/2 hourly maximum | E6: Daily PM ELV | F6: Monthly daily mean | G6: Highest daily maximum | J6: =+A6 -> 2022 | K6: mg/Nm3 | L6: Monthly 1/2 hourly mean | M6: Monthly 1/2 hourly maximum | N6: Monthly daily mean | O6: Monthly daily maximum
A7: Jan | B7: 30 | C7: =AVERAGE(L7,L22) -> 1.585 | D7: =MAX(M7,M22) -> 26.9 | E7: 10 | F7: =AVERAGE(N7,N22) -> 1.595 | G7: =MAX(O7,O22) -> 8.73 | J7: A1 | K7: Jan | L7: 2.73 | M7: 26.9 | N7: 2.76 | O7: 8.73
A8: Feb | B8: 30 | C8: 1.865 | D8: =MAX(M8,M23) -> 23.12 | E8: 10 | F8: 1.865 | G8: =MAX(O8,O23) -> 7.96 | K8: Feb | L8: 3.41 | M8: 23.12 | N8: 3.41 | O8: 7.96
A9: Mar | B9: 30 | C9: 3.785 | D9: 19.11 | E9: 10 | F9: 3.79 | G9: 8.32 | K9: Mar | L9: 6.59 | M9: 19.11 | N9: 6.59 | O9: 8.32 | Q9: Whole Installation table A5:G18:
A10: Apr | B10: 30 | C10: 4.36 | D10: 14.05 | E10: 10 | F10: 4.395 | G10: 9.31 | K10: Apr | L10: 7.45 | M10: 13.66 | N10: 7.52 | O10: 9.31 | Q10: Mean: for 1/2 hourly and daily periods calculate mean of values across all operational combustion lines for the month
A11: May | B11: 30 | C11: 0.4 | D11: 19.3 | E11: 10 | F11: 0.33 | G11: 4.7 | K11: May | L11: 0.3 | M11: 19.3 | N11: 0.245 | O11: 3.2
A12: Jun | B12: 30 | C12: 0.2 | D12: 16 | E12: 10 | F12: 0.2 | G12: 4.8 | K12: Jun | L12: 0.4 | M12: 16 | N12: 0.4 | O12: 4.8
A13: Jul | B13: 30 | C13: 0.2 | D13: 0.9 | E13: 10 | F13: 0.15 | G13: 0.4 | K13: Jul | L13: 0.2 | M13: 0.9 | N13: 0.1 | O13: 0.3 | Q13: Maximum: for 1/2 hourly and daily periods use the highest value across all operational combustion lines for the month
A14: Aug | B14: 30 | C14: 0.2 | D14: 2 | E14: 10 | F14: 0.2 | G14: 0.4 | K14: Aug | L14: 0.2 | M14: 2 | N14: 0.2 | O14: 0.4
A15: Sep | B15: 30 | C15: 0.4 | D15: 11.4 | E15: 10 | F15: 0.35 | G15: 3 | K15: Sep | L15: 0.6 | M15: 11.4 | N15: 0.5 | O15: 3
A16: Oct | B16: 30 | C16: 0.2 | D16: 1.2 | E16: 10 | F16: 0.2 | G16: 0.4 | K16: Oct | L16: 0.2 | M16: 1.2 | N16: 0.2 | O16: 0.4
A17: Nov | B17: 30 | C17: 0.15 | D17: 4.5 | E17: 10 | F17: 0.15 | G17: 0.4 | K17: Nov | L17: 0.1 | M17: 0.6 | N17: 0.1 | O17: 0.2
A18: Dec | B18: 30 | C18: 0.05 | D18: 0.9 | E18: 10 | F18: 0.05 | G18: 0.2 | K18: Dec | L18: 0.1 | M18: 0.9 | N18: 0.1 | O18: 0.2
K19: Annual | L19: =AVERAGE(L7:L18) -> 1.856666667 | M19: =MAX(M7:M18) -> 26.9 | N19: =AVERAGE(N7:N18) -> 1.84375 | O19: =MAX(O7:O18) -> 9.31
J21: =+A6 -> 2022 | K21: mg/Nm3 | L21: Monthly 1/2 hourly mean | M21: Monthly 1/2 hourly maximum | N21: Monthly daily mean | O21: Monthly daily maximum
J22: A2 | K22: Jan | L22: 0.44 | M22: 1.66 | N22: 0.43 | O22: 0.74
K23: Feb | L23: 0.32 | M23: 2.24 | N23: 0.32 | O23: 0.68
K24: Mar | L24: 0.98 | M24: 8.38 | N24: 0.99 | O24: 3.61
K25: Apr | L25: 1.27 | M25: 14.05 | N25: 1.27 | O25: 4.94
K26: May | L26: 0.5 | M26: 15.7 | N26: 0.415 | O26: 4.7
K27: Jun | L27: 0 | M27: 0 | N27: 0 | O27: 0
K28: Jul | L28: 0.2 | M28: 0.4 | N28: 0.2 | O28: 0.4
K29: Aug | L29: 0.2 | M29: 0.5 | N29: 0.2 | O29: 0.3
K30: Sep | L30: 0.2 | M30: 0.4 | N30: 0.2 | O30: 0.3
K31: Oct | L31: 0.2 | M31: 0.6 | N31: 0.2 | O31: 0.3
K32: Nov | L32: 0.2 | M32: 4.5 | N32: 0.2 | O32: 0.4
K33: Dec | L33: 0 | M33: 0.9 | N33: 0 | O33: 0.1
K34: Annual | L34: =AVERAGE(L22:L33) -> 0.3758333333 | M34: =MAX(M22:M33) -> 15.7 | N34: =AVERAGE(N22:N33) -> 0.36875 | O34: =MAX(O22:O33) -> 4.94
J36: =+A6 -> 2022 | K36: mg/Nm3 | L36: Monthly 1/2 hourly mean | M36: Monthly 1/2 hourly maximum | N36: Monthly daily mean | O36: Monthly daily maximum
J37: A3 | K37: Jan
K38: Feb
K39: Mar
K40: Apr
K41: May
K42: Jun
K43: Jul
K44: Aug
K45: Sep
K46: Oct
K47: Nov
A48: Comments : | K48: Dec
A49: The CEM data submitted from May to December 2022 have not been subject to BS EN 14181:2014 QAL2 calibration. The report will be re-submitted to the Environment Agency with the calibrated data once those are available therefore the data submitted above in this report are subject to change. | K49: Annual | L49: =AVERAGE(L37:L48) ->  | M49: =MAX(M37:M48) -> 0 | N49: =AVERAGE(N37:N48) ->  | O49: =MAX(O37:O48) -> 0
J51: =+A6 -> 2022 | K51: mg/Nm3 | L51: Monthly 1/2 hourly mean | M51: Monthly 1/2 hourly maximum | N51: Monthly daily mean | O51: Monthly daily maximum
J52: A4 | K52: Jan
K53: Feb
K54: Mar
K55: Apr
K56: May
K57: Jun
K58: Jul
K59: Aug
K60: Sep
K61: Oct
K62: Nov
K63: Dec
K64: Annual | L64: =AVERAGE(L52:L63) ->  | M64: =MAX(M52:M63) -> 0 | N64: =AVERAGE(N52:N63) ->  | O64: =MAX(O52:O63) -> 0
J66: =+A6 -> 2022 | K66: mg/Nm3 | L66: Monthly 1/2 hourly mean | M66: Monthly 1/2 hourly maximum | N66: Monthly daily mean | O66: Monthly daily maximum
J67: A5 | K67: Jan
K68: Feb
K69: Mar
K70: Apr
K71: May
K72: Jun
K73: Jul
K74: Aug
K75: Sep
K76: Oct
K77: Nov
K78: Dec
K79: Annual | L79: =AVERAGE(L67:L78) ->  | M79: =MAX(M67:M78) -> 0 | N79: =AVERAGE(N67:N78) ->  | O79: =MAX(O67:O78) -> 0

Sheet CO 0.5hourly (hidden)
A1: =+'Cover Page'!$B$29 -> Annual Performance Report 2022 | E1: =+'Cover Page'!$B$33 -> Tyseley Energy from Waste Plant
A3: Monitoring of Carbon Monoxide (half hourly) | D3: Whole Installation | G3: See Notes in Cell Q3 | J3: =+A3 -> Monitoring of Carbon Monoxide (half hourly) | N3: Per Combustion Line | Q3: Notes:
Q4: User to add logic to complete Whole installation, Table A5:G18. From the data in Per Combustion Line, Table J6:O79, subject to No. of lines installed
A5: mg/Nm3 | B5: 1/2 Hourly Reference Periods | E5: Daily Reference Periods
A6: =+'Cover Page'!C39 -> 2022 | B6: 1/2 hourly CO ELV | C6: Monthly 1/2 hourly mean | D6: Highest 1/2 hourly maximum | E6: Daily CO ELV | F6: Monthly daily mean | G6: Highest daily maximum | J6: =+A6 -> 2022 | K6: mg/Nm3 | L6: Monthly 1/2 hourly mean | M6: Monthly 1/2 hourly maximum | N6: Monthly daily mean | O6: Monthly daily maximum
A7: Jan | B7: 100 | E7: 50 | J7: A1 | K7: Jan
A8: Feb | B8: =+B7 -> 100 | E8: =+E7 -> 50 | K8: Feb
A9: Mar | B9: =+B8 -> 100 | E9: =+E8 -> 50 | K9: Mar | Q9: Whole Installation table A5:G18:
A10: Apr | B10: 100 | E10: 50 | K10: Apr | Q10: Mean: for 1/2 hourly and daily periods calculate mean of values across all operational combustion lines for the month
A11: May | B11: 100 | E11: 50 | K11: May
A12: Jun | B12: 100 | E12: 50 | K12: Jun
A13: Jul | B13: 100 | E13: 50 | K13: Jul | Q13: Maximum: for 1/2 hourly and daily periods use the highest value across all operational combustion lines for the month
A14: Aug | B14: 100 | E14: 50 | K14: Aug
A15: Sep | B15: 100 | E15: 50 | K15: Sep
A16: Oct | B16: 100 | E16: 50 | K16: Oct
A17: Nov | B17: 100 | E17: 50 | K17: Nov
A18: Dec | B18: 100 | E18: 50 | K18: Dec
K19: Annual | L19: =AVERAGE(L7:L18) ->  | M19: =MAX(M7:M18) -> 0 | N19: =AVERAGE(N7:N18) ->  | O19: =MAX(O7:O18) -> 0
J21: =+A6 -> 2022 | K21: mg/Nm3 | L21: Monthly 1/2 hourly mean | M21: Monthly 1/2 hourly maximum | N21: Monthly daily mean | O21: Monthly daily maximum
J22: A2 | K22: Jan
K23: Feb
K24: Mar
K25: Apr
K26: May
K27: Jun
K28: Jul
K29: Aug
K30: Sep
K31: Oct
K32: Nov
K33: Dec
K34: Annual | L34: =AVERAGE(L22:L33) ->  | M34: =MAX(M22:M33) -> 0 | N34: =AVERAGE(N22:N33) ->  | O34: =MAX(O22:O33) -> 0
J36: =+A6 -> 2022 | K36: mg/Nm3 | L36: Monthly 1/2 hourly mean | M36: Monthly 1/2 hourly maximum | N36: Monthly daily mean | O36: Monthly daily maximum
J37: A3 | K37: Jan
K38: Feb
K39: Mar
K40: Apr
K41: May
K42: Jun
K43: Jul
K44: Aug
K45: Sep
K46: Oct
K47: Nov
A48: Comments : | K48: Dec
K49: Annual | L49: =AVERAGE(L37:L48) ->  | M49: =MAX(M37:M48) -> 0 | N49: =AVERAGE(N37:N48) ->  | O49: =MAX(O37:O48) -> 0
J51: =+A6 -> 2022 | K51: mg/Nm3 | L51: Monthly 1/2 hourly mean | M51: Monthly 1/2 hourly maximum | N51: Monthly daily mean | O51: Monthly daily maximum
J52: A4 | K52: Jan
K53: Feb
K54: Mar
K55: Apr
K56: May
K57: Jun
K58: Jul
K59: Aug
K60: Sep
K61: Oct
K62: Nov
K63: Dec
K64: Annual | L64: =AVERAGE(L52:L63) ->  | M64: =MAX(M52:M63) -> 0 | N64: =AVERAGE(N52:N63) ->  | O64: =MAX(O52:O63) -> 0
J66: =+A6 -> 2022 | K66: mg/Nm3 | L66: Monthly 1/2 hourly mean | M66: Monthly 1/2 hourly maximum | N66: Monthly daily mean | O66: Monthly daily maximum
J67: A5 | K67: Jan
K68: Feb
K69: Mar
K70: Apr
K71: May
K72: Jun
K73: Jul
K74: Aug
K75: Sep
K76: Oct
K77: Nov
K78: Dec
K79: Annual | L79: =AVERAGE(L67:L78) ->  | M79: =MAX(M67:M78) -> 0 | N79: =AVERAGE(N67:N78) ->  | O79: =MAX(O67:O78) -> 0

Sheet CO 95% 10 min
A1: =+'Cover Page'!$B$29 -> Annual Performance Report 2022 | E1: =+'Cover Page'!$B$33 -> Tyseley Energy from Waste Plant
A3: Monitoring of Carbon Monoxide (10-minute avg) | E3: Whole Installation | H3: See Notes in Cell S3 | J3: =+A3 -> Monitoring of Carbon Monoxide (10-minute avg) | O3: Per Combustion Line | Q3: Notes: | S3: Notes:
S4: User to add logic to complete Whole installation, Table A5:H18. From the data in Per Combustion Line, Table K6:Q79, subject to No. of lines installed
A5: mg/Nm3 | B5: 10-minute Reference Periods | F5: Daily Reference Periods
A6: =+'Cover Page'!C39 -> 2022 | B6: 95%ile 10-min avg CO ELV | C6: 95%ile 10-min avg maximum | D6: Monthly CO 10-min avg mean | E6: 10-min avg maximum | F6: Daily CO ELV | G6: Monthly daily mean | H6: Highest daily maximum | K6: =+A6 -> 2022 | L6: mg/Nm3 | M6: 95%ile 10-min avg maximum | N6: Monthly CO 10-min avg mean | O6: 10-min avg maximum | P6: Monthly daily mean | Q6: Monthly daily maximum
A7: Jan | B7: 150 | C7: =MAX(M7,M22) -> 69.6 | D7: =AVERAGE(N7,N22) -> 10.23 | E7: =MAX(O7,O22) -> 337.76 | F7: 50 | G7: =AVERAGE(P7,P22) -> 10.21 | H7: =MAX(Q7,Q22) -> 18.93 | K7: A1 | L7: Jan | M7: 69.6 | N7: 8.67 | O7: 235.28 | P7: 8.74 | Q7: 18.93
A8: Feb | B8: =+B7 -> 150 | C8: =MAX(M8,M23) -> 82.2 | D8: =AVERAGE(N8,N23) -> 11.15 | E8: =MAX(O8,O23) -> 360.32 | F8: =+F7 -> 50 | G8: =AVERAGE(P8,P23) -> 11.15 | H8: =MAX(Q8,Q23) -> 21.28 | L8: Feb | M8: 82.2 | N8: 11.07 | O8: 360.32 | P8: 11.07 | Q8: 21.28
A9: Mar | B9: =+B8 -> 150 | C9: 81.4 | D9: 11.965 | E9: 258.27 | F9: =+F8 -> 50 | G9: 12.1 | H9: 24.38 | L9: Mar | M9: 64.9 | N9: 8.97 | O9: 258.27 | P9: 8.97 | Q9: 23.41 | S9: Whole Installation table A5:H18:
A10: Apr | B10: 150 | C10: 90.5 | D10: 14.5 | E10: 523.03 | F10: 50 | G10: 14.355 | H10: 32.76 | L10: Apr | M10: 51.7 | N10: 7.64 | O10: 232.94 | P10: 7.35 | Q10: 13.85 | S10: Mean: for 10-min and daily periods use average of all operational combustion lines.
A11: May | B11: 150 | C11: 71.2 | D11: 13.45 | E11: 395.7 | F11: 50 | G11: 14.445 | H11: 21.8 | L11: May | M11: 49.8 | N11: 11.5 | O11: 260.5 | P11: 13.19 | Q11: 20.2
A12: Jun | B12: 150 | C12: 98.9 | D12: 13.25 | E12: 634.6 | F12: 50 | G12: 13.1 | H12: 26.8 | L12: Jun | M12: 95.3 | N12: 15.2 | O12: 346.8 | P12: 15.2 | Q12: 26.8
A13: Jul | B13: 150 | C13: 71 | D13: 8.6 | E13: 716.7 | F13: 50 | G13: 8.6 | H13: 18.9 | L13: Jul | M13: 71 | N13: 9.1 | O13: 412.1 | P13: 9.1 | Q13: 18.9 | S13: Maximum: for 10-min and daily periods use the highest of all operational combustion lines in any month.
A14: Aug | B14: 150 | C14: 47.2 | D14: 8.05 | E14: 867.6 | F14: 50 | G14: 7.95 | H14: 13.5 | L14: Aug | M14: 16.4 | N14: 7.1 | O14: 867.6 | P14: 7 | Q14: 13.5
A15: Sep | B15: 150 | C15: 68.8 | D15: 9.4 | E15: 1325.9 | F15: 50 | G15: 9.35 | H15: 24.2 | L15: Sep | M15: 61.4 | N15: 8.7 | O15: 540.8 | P15: 8.6 | Q15: 21
A16: Oct | B16: 150 | C16: 51.6 | D16: 9.2 | E16: 459.7 | F16: 50 | G16: 9.2 | H16: 15.9 | L16: Oct | M16: 51.6 | N16: 9.7 | O16: 459.7 | P16: 9.7 | Q16: 15.9
A17: Nov | B17: 150 | C17: 81.7 | D17: 10 | E17: 497.2 | F17: 50 | G17: 9.95 | H17: 17.5 | L17: Nov | M17: 81.7 | N17: 9.9 | O17: 241.8 | P17: 9.9 | Q17: 16.8
A18: Dec | B18: 150 | C18: 52.4 | D18: 9.65 | E18: 1346.2 | F18: 50 | G18: 9.55 | H18: 21.6 | L18: Dec | M18: 52.4 | N18: 10 | O18: 422.5 | P18: 10 | Q18: 17.5
L19: Annual | M19: =AVERAGE(M7:M18) -> 62.33333333 | N19: =AVERAGE(N7:N18) -> 9.795833333 | O19: =MAX(O7:O18) -> 867.6 | P19: =AVERAGE(P7:P18) -> 9.901666667 | Q19: =MAX(Q7:Q18) -> 26.8
K21: =+A6 -> 2022 | L21: mg/Nm3 | M21: 95%ile 10-min avg maximum | N21: Monthly CO 10-min avg mean | O21: 10-min avg maximum | P21: Monthly daily mean | Q21: Monthly daily maximum
K22: A2 | L22: Jan | M22: 46.8 | N22: 11.79 | O22: 337.76 | P22: 11.68 | Q22: 16.85
L23: Feb | M23: 37.7 | N23: 11.23 | O23: 153.16 | P23: 11.23 | Q23: 15.1
L24: Mar | M24: 81.4 | N24: 14.96 | O24: 237.57 | P24: 15.23 | Q24: 24.38
L25: Apr | M25: 90.5 | N25: 21.36 | O25: 523.03 | P25: 21.36 | Q25: 32.76
L26: May | M26: 71.2 | N26: 15.4 | O26: 395.7 | P26: 15.7 | Q26: 21.8
L27: Jun | M27: 98.9 | N27: 11.3 | O27: 634.6 | P27: 11 | Q27: 23.4
L28: Jul | M28: 52.6 | N28: 8.1 | O28: 716.7 | P28: 8.1 | Q28: 14.6
L29: Aug | M29: 47.2 | N29: 9 | O29: 363.8 | P29: 8.9 | Q29: 13
L30: Sep | M30: 68.8 | N30: 10.1 | O30: 1325.9 | P30: 10.1 | Q30: 24.2
L31: Oct | M31: 50.6 | N31: 8.7 | O31: 437.5 | P31: 8.7 | Q31: 14.6
L32: Nov | M32: 43.4 | N32: 10.1 | O32: 497.2 | P32: 10 | Q32: 17.5
L33: Dec | M33: 34.7 | N33: 9.3 | O33: 1346.2 | P33: 9.1 | Q33: 21.6
L34: Annual | M34: =AVERAGE(M22:M33) -> 60.31666667 | N34: =AVERAGE(N22:N33) -> 11.77833333 | O34: =MAX(O22:O33) -> 1346.2 | P34: =AVERAGE(P22:P33) -> 11.75833333 | Q34: =MAX(Q22:Q33) -> 32.76
K36: =+A6 -> 2022 | L36: mg/Nm3 | M36: 95%ile 10-min avg maximum | N36: Monthly CO 10-min avg mean | O36: 10-min avg maximum | P36: Monthly daily mean | Q36: Monthly daily maximum
K37: A3 | L37: Jan
L38: Feb
L39: Mar
L40: Apr
L41: May
L42: Jun
L43: Jul
L44: Aug
L45: Sep
L46: Oct
L47: Nov
A48: Comments : | L48: Dec
A49: Environment Agency explanatory note: The 10-minute average ELV is based on the “95th percentile”. In this case this means that 95% of the 10 minute averages in the relevant 24-hour period (i.e. 137) must be below 150 mg/Nm3, and 5% (i.e. 7) are allowed to be any value above 150 mg/Nm3. Whilst we expect operators to minimise CO emissions at all times, it is perfectly acceptable for the value of the maximum 10-minute average to be above 150 mg/Nm3, provided the 95th percentile ELV has been met for that period. | L49: Annual | M49: =AVERAGE(M37:M48) ->  | O49: =MAX(O37:O48) -> 0 | P49: =AVERAGE(P37:P48) ->  | Q49: =MAX(Q37:Q48) -> 0
K51: =+A6 -> 2022 | L51: mg/Nm3 | M51: 95%ile 10-min avg maximum | N51: Monthly CO 10-min avg mean | O51: 10-min avg maximum | P51: Monthly daily mean | Q51: Monthly daily maximum
K52: A4 | L52: Jan
A53: The CEM data submitted from May to December 2022 have not been subject to BS EN 14181:2014 QAL2 calibration. The report will be re-submitted to the Environment Agency with the calibrated data once those are available therefore the data submitted above in this report are subject to change. | L53: Feb
L54: Mar
L55: Apr
L56: May
L57: Jun
L58: Jul
L59: Aug
L60: Sep
L61: Oct
L62: Nov
L63: Dec
L64: Annual | M64: =AVERAGE(M52:M63) ->  | O64: =MAX(O52:O63) -> 0 | P64: =AVERAGE(P52:P63) ->  | Q64: =MAX(Q52:Q63) -> 0
K66: =+A6 -> 2022 | L66: mg/Nm3 | M66: 95%ile 10-min avg maximum | N66: Monthly CO 10-min avg mean | O66: 10-min avg maximum | P66: Monthly daily mean | Q66: Monthly daily maximum
K67: A5 | L67: Jan
L68: Feb
L69: Mar
L70: Apr
L71: May
L72: Jun
L73: Jul
L74: Aug
L75: Sep
L76: Oct
L77: Nov
L78: Dec
L79: Annual | M79: =AVERAGE(M67:M78) ->  | O79: =MAX(O67:O78) -> 0 | P79: =AVERAGE(P67:P78) ->  | Q79: =MAX(Q67:Q78) -> 0
